Body Name,Body,Service Division Label,Service Division Code,Organisational Unit,Expenditure Category,Expenditure Code,CIPFA detailed expediture type,CIPFA detailed expediture code,Narrative,Date,Transaction number,Net Amount,Capital and Revenue,Supplier Name,Supplier ID,,
Chorley Borough Council,http://statistics.data.gov.uk/id/local-authority/30UE,Business Support,1095,Early Intervention,Fixtures & Fittings - Purchase,20027,Fixtures and Fittings,5010,Office Blinds - Primrose Gardens,24/04/2019,0137251,423.58,Revenue,A B Blinds,17475,,
Chorley Borough Council,http://statistics.data.gov.uk/id/local-authority/30UE,Democratic Represent and  Mgnt,1007,Policy & Governance,Conservation Of Exhibits,40059,Services,5027,"Supply and install blinds as per quote in the following store rooms: Cottage Store - 4 windows in blackout calico FR Store 2",24/04/2019,0137262,417.27,Revenue,A B Blinds,17475,,
Chorley Borough Council,http://statistics.data.gov.uk/id/local-authority/30UE,Democratic Represent and  Mgnt,1007,Policy & Governance,Other Fees,40212,Miscellaneous Expenses,5034,Lancastrian bar fees for April 2019.,26/04/2019,0137484,520.00,Revenue,Ace Bars Ltd,54338,,
Chorley Borough Council,http://statistics.data.gov.uk/id/local-authority/30UE,Unapportionable Central OHeads,1009,Policy & Governance,Training Course Fees,17010,Indirect Employee Expenses,5002,"Attendance on Freedom of Information Act 2000: An A-Z Guide course 17 July 2019, Manchester",24/04/2019,0136502,349.00,Revenue,Act Now Training LTD,19583,,
Chorley Borough Council,http://statistics.data.gov.uk/id/local-authority/30UE,Democratic Represent and  Mgnt,1007,Early Intervention,External Contractor - Trust or Charity,50008,Private Contractors,5042,"Active Nation Annual Management Fee 2018-2019",17/04/2019,0137002,"33,911.84",Revenue,Active Nation UK Ltd,17144,,
Chorley Borough Council,http://statistics.data.gov.uk/id/local-authority/30UE,Corporate Management,1008,Customer & Digital,Contributions Parish Councils,40144,Grants and Subscriptions,5031,contributions parish,03/04/2019,0136909,"1,816.00",Revenue,Adlington Town Council,17626,,
Chorley Borough Council,http://statistics.data.gov.uk/id/local-authority/30UE,Payments of Precepts to Parish,1018,Customer & Digital,Parish Council Tax,04500,Revenue Account Transfers,Balance,praish precepts /parish council,03/04/2019,0136909,"16,684.00",Revenue,Adlington Town Council,17626,,
Chorley Borough Council,http://statistics.data.gov.uk/id/local-authority/30UE,Recognised Cap Grants & Conts,,Business Development & Growth,Contributions Parish Councils,40144,Grants and Subscriptions,5031,CIL Receipt for Period 1st October - 31 March 2019,12/04/2019,0137110,884.68,Revenue,Adlington Town Council,17626,,
Chorley Borough Council,http://statistics.data.gov.uk/id/local-authority/30UE,Unapportionable Central OHeads,1009,Business Development & Growth,Burglar Alarms & Security Systems,20075,Fixtures and Fittings,5010,reactive call outs INTRUDER and ACCESS,12/04/2019,0136296,263.00,Revenue,ADT Fire & Security,16645,,
Chorley Borough Council,http://statistics.data.gov.uk/id/local-authority/30UE,Unapportionable Central OHeads,1009,Business Development & Growth,Burglar Alarms & Security Systems,20075,Fixtures and Fittings,5010,reactive call outs INTRUDER and ACCESS,12/04/2019,0136987,310.63,Revenue,ADT Fire & Security,16645,,
Chorley Borough Council,http://statistics.data.gov.uk/id/local-authority/30UE,Capital,Capital,Business Development & Growth,Architects Fees,03022,Capital Expenditure,Capital,Tenant liaison service from April 2018 to September 2019,10/04/2019,0136817,"1,120.00",Capital,AEW Architects & Designers Ltd,66520,,
Chorley Borough Council,http://statistics.data.gov.uk/id/local-authority/30UE,Unapportionable Central OHeads,1009,Customer & Digital,Bank Charges,40151,Miscellaneous Expenses,5034,add account fee,05/04/2019,0136981,10.37,Revenue,Allpay Net Ltd,17242,,
Chorley Borough Council,http://statistics.data.gov.uk/id/local-authority/30UE,Unapportionable Central OHeads,1009,Customer & Digital,Bank Charges,40151,Miscellaneous Expenses,5034,post office,05/04/2019,0136981,646.66,Revenue,Allpay Net Ltd,17242,,
Chorley Borough Council,http://statistics.data.gov.uk/id/local-authority/30UE,Unapportionable Central OHeads,1009,Customer & Digital,Bank Charges,40151,Miscellaneous Expenses,5034,paypoint,05/04/2019,0136981,350.56,Revenue,Allpay Net Ltd,17242,,
Chorley Borough Council,http://statistics.data.gov.uk/id/local-authority/30UE,Unapportionable Central OHeads,1009,Customer & Digital,Bank Charges,40151,Miscellaneous Expenses,5034,webcon,05/04/2019,0136981,47.72,Revenue,Allpay Net Ltd,17242,,
Chorley Borough Council,http://statistics.data.gov.uk/id/local-authority/30UE,Unapportionable Central OHeads,1009,Policy & Governance,Cleaning Materials,40019,"Equipment, Furniture & Materia",5023,BC015-5 Thick Bleach 8 x 5 litres @2.11 per container total 16.88,17/04/2019,0136750,16.88,Revenue,Amtoll Ltd,21738,,
Chorley Borough Council,http://statistics.data.gov.uk/id/local-authority/30UE,Unapportionable Central OHeads,1009,Policy & Governance,Cleaning Materials,40019,"Equipment, Furniture & Materia",5023,"BD040-5 Lemon Gel 4 x 5 litres @4.44 per container total 17.76",17/04/2019,0136750,17.76,Revenue,Amtoll Ltd,21738,,
Chorley Borough Council,http://statistics.data.gov.uk/id/local-authority/30UE,Unapportionable Central OHeads,1009,Policy & Governance,Cleaning Materials,40019,"Equipment, Furniture & Materia",5023,"BK102-C1 Foam soap box of 6QTY 8 boxes @ 15 per box Total 120",17/04/2019,0136750,120.00,Revenue,Amtoll Ltd,21738,,
Chorley Borough Council,http://statistics.data.gov.uk/id/local-authority/30UE,Unapportionable Central OHeads,1009,Policy & Governance,Cleaning Materials,40019,"Equipment, Furniture & Materia",5023,"NC-16006 Henry Vacuum bags 10 per boxQTY 3 boxes 3.30Total 9.90",17/04/2019,0136750,3.30,Revenue,Amtoll Ltd,21738,,
Chorley Borough Council,http://statistics.data.gov.uk/id/local-authority/30UE,Unapportionable Central OHeads,1009,Policy & Governance,Cleaning Materials,40019,"Equipment, Furniture & Materia",5023,"CG121Y Yellow dish cloths 10 per packQTY 10 packs @ 1.16 per packTotal 11.60",17/04/2019,0136750,11.60,Revenue,Amtoll Ltd,21738,,
Chorley Borough Council,http://statistics.data.gov.uk/id/local-authority/30UE,Unapportionable Central OHeads,1009,Policy & Governance,Cleaning Materials,40019,"Equipment, Furniture & Materia",5023,AF113 blue centre feed 2 ply 6 rolls per pack @7.37 per pack QTY 10 packs total 73.70,17/04/2019,0136750,73.70,Revenue,Amtoll Ltd,21738,,
Chorley Borough Council,http://statistics.data.gov.uk/id/local-authority/30UE,Unapportionable Central OHeads,1009,Policy & Governance,Cleaning Materials,40019,"Equipment, Furniture & Materia",5023,BB034-5 Washing up liquid 5Ltr @ 3.30 per 5Ltr QTY 8 x 5Ltr Total 26.40,17/04/2019,0136750,26.40,Revenue,Amtoll Ltd,21738,,
Chorley Borough Council,http://statistics.data.gov.uk/id/local-authority/30UE,Unapportionable Central OHeads,1009,Policy & Governance,Cleaning Materials,40019,"Equipment, Furniture & Materia",5023,CM180 Black bin liners @ 11.75 per box QTY 8 boxes total 94,17/04/2019,0136750,94.00,Revenue,Amtoll Ltd,21738,,
Chorley Borough Council,http://statistics.data.gov.uk/id/local-authority/30UE,Unapportionable Central OHeads,1009,Policy & Governance,Cleaning Materials,40019,"Equipment, Furniture & Materia",5023,BG040 Spray Air fresh 400ml @ 0.86 per 400ml QTY 24 x 400ml total 20.64,17/04/2019,0136750,20.64,Revenue,Amtoll Ltd,21738,,
Chorley Borough Council,http://statistics.data.gov.uk/id/local-authority/30UE,Unapportionable Central OHeads,1009,Policy & Governance,Cleaning Materials,40019,"Equipment, Furniture & Materia",5023,BC040-5 Fragranced toilet cleaner 5Ltr @ 3.53 per container total QTY 8 x 5 litres,17/04/2019,0136750,28.24,Revenue,Amtoll Ltd,21738,,
Chorley Borough Council,http://statistics.data.gov.uk/id/local-authority/30UE,Unapportionable Central OHeads,1009,Policy & Governance,Cleaning Materials,40019,"Equipment, Furniture & Materia",5023,BA001-5 Hard Surface Cleaner 5Ltr. @ 2.86 per container QTY 4 x 5ltr total 11.44,17/04/2019,0136750,11.44,Revenue,Amtoll Ltd,21738,,
Chorley Borough Council,http://statistics.data.gov.uk/id/local-authority/30UE,Unapportionable Central OHeads,1009,Policy & Governance,Cleaning Materials,40019,"Equipment, Furniture & Materia",5023,AE233 Paper towels S fold 1 ply @8.10/box QTY 30 boxes total 243.00,17/04/2019,0136750,243.00,Revenue,Amtoll Ltd,21738,,
Chorley Borough Council,http://statistics.data.gov.uk/id/local-authority/30UE,Unapportionable Central OHeads,1009,Policy & Governance,Cleaning Materials,40019,"Equipment, Furniture & Materia",5023,AC003 Small toilet rolls 36 pack @ 6.05/pack QTY 13 packs total 78.65,17/04/2019,0136750,78.65,Revenue,Amtoll Ltd,21738,,
Chorley Borough Council,http://statistics.data.gov.uk/id/local-authority/30UE,Unapportionable Central OHeads,1009,Policy & Governance,Cleaning Materials,40019,"Equipment, Furniture & Materia",5023,AD104 Mini Jumbo 12 pack QTY 15 packs @ 8.91/ pack total 133.65,17/04/2019,0136750,133.65,Revenue,Amtoll Ltd,21738,,
Chorley Borough Council,http://statistics.data.gov.uk/id/local-authority/30UE,Unapportionable Central OHeads,1009,Policy & Governance,Cleaning Materials,40019,"Equipment, Furniture & Materia",5023,Furniture Polish Spray x400ML BG045   QTY 12 cans 1.01 / can total 12.12,17/04/2019,0136750,12.12,Revenue,Amtoll Ltd,21738,,
Chorley Borough Council,http://statistics.data.gov.uk/id/local-authority/30UE,Unapportionable Central OHeads,1009,Policy & Governance,Cleaning Materials,40019,"Equipment, Furniture & Materia",5023,"Yellow Dusters        10Pack	 CG101 QTY 5 packs total 6.50",17/04/2019,0136750,6.50,Revenue,Amtoll Ltd,21738,,
Chorley Borough Council,http://statistics.data.gov.uk/id/local-authority/30UE,Unapportionable Central OHeads,1009,Policy & Governance,Cleaning Materials,40019,"Equipment, Furniture & Materia",5023,"250 Twine Mop QTY 10Yellow HA021-YQTY 10 Blue HA021-BQTY 10 Red HA021-R	Total 24.30",17/04/2019,0136750,16.20,Revenue,Amtoll Ltd,21738,,
Chorley Borough Council,http://statistics.data.gov.uk/id/local-authority/30UE,Unapportionable Central OHeads,1009,Policy & Governance,Cleaning Materials,40019,"Equipment, Furniture & Materia",5023,Disposable Gloves  Medium DG150-M QTY 10 boxes total 35.20,17/04/2019,0136750,35.20,Revenue,Amtoll Ltd,21738,,
Chorley Borough Council,http://statistics.data.gov.uk/id/local-authority/30UE,Unapportionable Central OHeads,1009,Policy & Governance,Cleaning Materials,40019,"Equipment, Furniture & Materia",5023,Glass Wash BB125-5 QTY 4 x 5litre total 12.16,17/04/2019,0136750,12.16,Revenue,Amtoll Ltd,21738,,
Chorley Borough Council,http://statistics.data.gov.uk/id/local-authority/30UE,Unapportionable Central OHeads,1009,Policy & Governance,Cleaning Materials,40019,"Equipment, Furniture & Materia",5023,PO raised on wrong ac (107966 pattersons) mini jumbo toilet roll,17/04/2019,0136806,178.20,Revenue,Amtoll Ltd,21738,,
Chorley Borough Council,http://statistics.data.gov.uk/id/local-authority/30UE,Unapportionable Central OHeads,1009,Policy & Governance,Cleaning Materials,40019,"Equipment, Furniture & Materia",5023,TOILET ROLL,17/04/2019,0136806,72.60,Revenue,Amtoll Ltd,21738,,
Chorley Borough Council,http://statistics.data.gov.uk/id/local-authority/30UE,Unapportionable Central OHeads,1009,Policy & Governance,Cleaning Materials,40019,"Equipment, Furniture & Materia",5023,hand towel,17/04/2019,0136806,202.50,Revenue,Amtoll Ltd,21738,,
Chorley Borough Council,http://statistics.data.gov.uk/id/local-authority/30UE,Unapportionable Central OHeads,1009,Policy & Governance,Cleaning Materials,40019,"Equipment, Furniture & Materia",5023,surface cleaner,17/04/2019,0136806,17.16,Revenue,Amtoll Ltd,21738,,
Chorley Borough Council,http://statistics.data.gov.uk/id/local-authority/30UE,Unapportionable Central OHeads,1009,Policy & Governance,Cleaning Materials,40019,"Equipment, Furniture & Materia",5023,air fresh,17/04/2019,0136806,20.64,Revenue,Amtoll Ltd,21738,,
Chorley Borough Council,http://statistics.data.gov.uk/id/local-authority/30UE,Unapportionable Central OHeads,1009,Policy & Governance,Cleaning Materials,40019,"Equipment, Furniture & Materia",5023,refuse sacks blk,17/04/2019,0136806,94.00,Revenue,Amtoll Ltd,21738,,
Chorley Borough Council,http://statistics.data.gov.uk/id/local-authority/30UE,Unapportionable Central OHeads,1009,Policy & Governance,Cleaning Materials,40019,"Equipment, Furniture & Materia",5023,green detergant,17/04/2019,0136806,9.90,Revenue,Amtoll Ltd,21738,,
Chorley Borough Council,http://statistics.data.gov.uk/id/local-authority/30UE,Unapportionable Central OHeads,1009,Policy & Governance,Cleaning Materials,40019,"Equipment, Furniture & Materia",5023,gloves,17/04/2019,0136806,70.40,Revenue,Amtoll Ltd,21738,,
Chorley Borough Council,http://statistics.data.gov.uk/id/local-authority/30UE,Unapportionable Central OHeads,1009,Policy & Governance,Cleaning Materials,40019,"Equipment, Furniture & Materia",5023,polish,17/04/2019,0136806,12.12,Revenue,Amtoll Ltd,21738,,
Chorley Borough Council,http://statistics.data.gov.uk/id/local-authority/30UE,Unapportionable Central OHeads,1009,Policy & Governance,Cleaning Materials,40019,"Equipment, Furniture & Materia",5023,centerfeed roll,17/04/2019,0136806,44.22,Revenue,Amtoll Ltd,21738,,
Chorley Borough Council,http://statistics.data.gov.uk/id/local-authority/30UE,Unapportionable Central OHeads,1009,Policy & Governance,Cleaning Materials,40019,"Equipment, Furniture & Materia",5023,scouring pad,17/04/2019,0136806,10.60,Revenue,Amtoll Ltd,21738,,
Chorley Borough Council,http://statistics.data.gov.uk/id/local-authority/30UE,Economic Development,1096,Business Development & Growth,Cleaning Materials,40019,"Equipment, Furniture & Materia",5023,Please supply cleaning materials as per e-mail,18/04/2019,0137225,364.95,Revenue,Amtoll Ltd,21738,,
Chorley Borough Council,http://statistics.data.gov.uk/id/local-authority/30UE,Corporate Management,1008,Customer & Digital,Contributions Parish Councils,40144,Grants and Subscriptions,5031,contributions parish,03/04/2019,0136910,294.00,Revenue,Anderton Parish Council,18125,,
Chorley Borough Council,http://statistics.data.gov.uk/id/local-authority/30UE,Payments of Precepts to Parish,1018,Customer & Digital,Parish Council Tax,04500,Revenue Account Transfers,Balance,precepts/parish council,03/04/2019,0136910,"4,806.00",Revenue,Anderton Parish Council,18125,,
Chorley Borough Council,http://statistics.data.gov.uk/id/local-authority/30UE,Central Support Services,1009,Early Intervention,Works In Default,40199,Miscellaneous Expenses,5034,In relation to powers under Section 40 of the Housing Act 2004 (Taking of Emergency Remedial Action) undertake an initial survey,12/04/2019,0137187,"2,579.06",Revenue,APG Domestic Services Ltd,20448,,
Chorley Borough Council,http://statistics.data.gov.uk/id/local-authority/30UE,Planning Policy,1092,Business Development & Growth,Professional Fees,40063,Services,5027,Commission of a Gypsy and Traveller Accommodation Assessment to help form the evidence base for the developing Central,03/04/2019,0136946,"3,010.98",Revenue,Arc4,60831,,
Chorley Borough Council,http://statistics.data.gov.uk/id/local-authority/30UE,Democratic Represent and  Mgnt,1007,Policy & Governance,Car Leasing Payment,14100,Direct Employee Expenses,5001,car lease,18/04/2019,0137339,"3,023.64",Revenue,Arnold Clark Finance Ltd,20685,,
Chorley Borough Council,http://statistics.data.gov.uk/id/local-authority/30UE,Planning Policy,1092,Policy & Governance,Car Leasing Payment,14100,Direct Employee Expenses,5001,car lease,18/04/2019,0137340,"3,494.64",Revenue,Arnold Clark Finance Ltd,20685,,
Chorley Borough Council,http://statistics.data.gov.uk/id/local-authority/30UE,Planning Policy,1092,Policy & Governance,Car Leasing Payment,14100,Direct Employee Expenses,5001,car lease,18/04/2019,0137340,296.75,Revenue,Arnold Clark Finance Ltd,20685,,
Chorley Borough Council,http://statistics.data.gov.uk/id/local-authority/30UE,Economic Development,1096,Policy & Governance,Car Leasing Payment,14100,Direct Employee Expenses,5001,car lease,18/04/2019,0137341,"2,329.32",Revenue,Arnold Clark Finance Ltd,20685,,
Chorley Borough Council,http://statistics.data.gov.uk/id/local-authority/30UE,Unapportionable Central OHeads,1009,Policy & Governance,Car Leasing Payment,14100,Direct Employee Expenses,5001,car lease,17/04/2019,0137342,"3,222.12",Revenue,Arnold Clark Finance Ltd,20685,,
Chorley Borough Council,http://statistics.data.gov.uk/id/local-authority/30UE,Unapportionable Central OHeads,1009,Policy & Governance,Car Leasing Payment,14100,Direct Employee Expenses,5001,car lease,10/04/2019,0136990,"2,914.64",Revenue,Arval UK Ltd,18240,,
Chorley Borough Council,http://statistics.data.gov.uk/id/local-authority/30UE,Unapportionable Central OHeads,1009,Policy & Governance,Car Leasing Payment,14100,Direct Employee Expenses,5001,car lease,10/04/2019,0136991,"2,963.02",Revenue,Arval UK Ltd,18240,,
Chorley Borough Council,http://statistics.data.gov.uk/id/local-authority/30UE,Central Support Services,1009,Policy & Governance,Car Leasing Payment,14100,Direct Employee Expenses,5001,car lease,10/04/2019,0136993,"3,469.81",Revenue,Arval UK Ltd,18240,,
Chorley Borough Council,http://statistics.data.gov.uk/id/local-authority/30UE,Unapportionable Central OHeads,1009,Policy & Governance,Car Leasing Payment,14100,Direct Employee Expenses,5001,car lease,10/04/2019,0137015,"3,216.13",Revenue,Arval UK Ltd,18240,,
Chorley Borough Council,http://statistics.data.gov.uk/id/local-authority/30UE,Corporate Management,1008,Customer & Digital,Contributions Parish Councils,40144,Grants and Subscriptions,5031,contributions parish,03/04/2019,0136911,"3,877.00",Revenue,Astley Village Parish Council,17642,,
Chorley Borough Council,http://statistics.data.gov.uk/id/local-authority/30UE,Payments of Precepts to Parish,1018,Customer & Digital,Parish Council Tax,04500,Revenue Account Transfers,Balance,precepts parish council,03/04/2019,0136911,"20,689.00",Revenue,Astley Village Parish Council,17642,,
Chorley Borough Council,http://statistics.data.gov.uk/id/local-authority/30UE,Public Transport,1067,Customer & Digital,Bus Shelters -Maintenance,20062,Grounds Maintenance Costs,5013,"Job 1LOCATION: Shelter adjacent �BISTECCA 6 Market Street Adlington Chorley PR7 4HE  - near Walton Street. DESCRIPTION",05/04/2019,0136849,685.00,Revenue,Autocross Euroshel Ltd,77509,,
Chorley Borough Council,http://statistics.data.gov.uk/id/local-authority/30UE,Public Transport,1067,Customer & Digital,Bus Shelters -Maintenance,20062,Grounds Maintenance Costs,5013,"Job 2LOCATION: Shelter adjacent �Hair By Amanda 76 Chorley Road Adlington Chorley PR6 9LGDESCRIPTION: Supply and fit ",05/04/2019,0136849,570.00,Revenue,Autocross Euroshel Ltd,77509,,
Chorley Borough Council,http://statistics.data.gov.uk/id/local-authority/30UE,Public Transport,1067,Customer & Digital,Bus Shelters -Maintenance,20062,Grounds Maintenance Costs,5013,"Job 3 LOCATION: Shelter adjacent 86 Preston Road, Chorley PR7 1PTDESCRIPTION: Supply and fit new roof (flat) to replace ",05/04/2019,0136849,685.00,Revenue,Autocross Euroshel Ltd,77509,,
Chorley Borough Council,http://statistics.data.gov.uk/id/local-authority/30UE,Public Transport,1067,Customer & Digital,Bus Shelters -Maintenance,20062,Grounds Maintenance Costs,5013,"Job 4 LOCATIONS & DESCRIPTION:  Relocate a shelter from Runshaw Lane to Southport Road Dig up and remove an intact",05/04/2019,0136859,"1,150.00",Revenue,Autocross Euroshel Ltd,77509,,
Chorley Borough Council,http://statistics.data.gov.uk/id/local-authority/30UE,Capital,Capital,Early Intervention,Grants,03002,Capital Expenditure,Capital,ADDRESS REDACTED,12/04/2019,0137219,494.00,Capital,NAME REDACTED ,77705,,
Chorley Borough Council,http://statistics.data.gov.uk/id/local-authority/30UE,Capital,Capital,Early Intervention,Grants,03002,Capital Expenditure,Capital,ADDRESS REDACTED,12/04/2019,0137220,"2,400.00",Capital,NAME REDACTED ,77705,,
Chorley Borough Council,http://statistics.data.gov.uk/id/local-authority/30UE,Homelessness,1075,Early Intervention,Laundry,40042,"Clothing, Uniforms and Laundry",5025,Weekly linen Service,18/04/2019,0136982,503.85,Revenue,Berendsen UK Ltd,20799,,
Chorley Borough Council,http://statistics.data.gov.uk/id/local-authority/30UE,Central Support Services,1009,Policy & Governance,External Contractor,40198,Miscellaneous Expenses,5034,provision of payroll services 2018/2019,10/04/2019,0136896,"6,712.58",Revenue,Blackpool Borough Council,16518,,
Chorley Borough Council,http://statistics.data.gov.uk/id/local-authority/30UE,Central Support Services,1009,Chief Executive,Miscellaneous Expenses,40200,Miscellaneous Expenses,5034,"Works at St James School Crosse Hall Lane Lining wk  install guardrail and signage, re-set kerbs",17/04/2019,0137200,"1,590.55",Revenue,Borough of Pendle (Engineering and Design Services,54929,,
Chorley Borough Council,http://statistics.data.gov.uk/id/local-authority/30UE,Central Support Services,1009,Customer & Digital,Consultants` Fees,40077,Services,5027,"80GHz Wireless linkDecommission of wireless link",10/04/2019,0136996,"8,250.00",Revenue,Boundless Networks Ltd,77550,,
Chorley Borough Council,http://statistics.data.gov.uk/id/local-authority/30UE,Corporate Management,1008,Customer & Digital,Contributions Parish Councils,40144,Grants and Subscriptions,5031,contributions parish,03/04/2019,0136961,414.00,Revenue,Bretherton Parish Council,17108,,
Chorley Borough Council,http://statistics.data.gov.uk/id/local-authority/30UE,Payments of Precepts to Parish,1018,Customer & Digital,Parish Council Tax,04500,Revenue Account Transfers,Balance,precepts parish council,03/04/2019,0136961,"12,666.00",Revenue,Bretherton Parish Council,17108,,
Chorley Borough Council,http://statistics.data.gov.uk/id/local-authority/30UE,Corporate Management,1008,Customer & Digital,Contributions Parish Councils,40144,Grants and Subscriptions,5031,contributions parish,03/04/2019,0136969,273.00,Revenue,Brindle Parish Council,17023,,
Chorley Borough Council,http://statistics.data.gov.uk/id/local-authority/30UE,Payments of Precepts to Parish,1018,Customer & Digital,Parish Council Tax,04500,Revenue Account Transfers,Balance,precepts parish council,03/04/2019,0136969,"6,527.00",Revenue,Brindle Parish Council,17023,,
Chorley Borough Council,http://statistics.data.gov.uk/id/local-authority/30UE,Recognised Cap Grants & Conts,,Business Development & Growth,Contributions Parish Councils,40144,Grants and Subscriptions,5031,cil recept,12/04/2019,0137111,"1,574.23",Revenue,Brindle Parish Council,17023,,
Chorley Borough Council,http://statistics.data.gov.uk/id/local-authority/30UE,Business Support,1095,Business Development & Growth,Miscellaneous Expenses,40200,Miscellaneous Expenses,5034,"3 fridges for Strawberry Fields Digital Hub. Series 4 KSV36VB3PG 186x60cm 346L Freestanding Upright Fridge - Black.",24/04/2019,0136995,"1,659.91",Revenue,Buy It Direct Ltd  t/a  Appliancesdirect,77797,,
Chorley Borough Council,http://statistics.data.gov.uk/id/local-authority/30UE,Business Support,1095,Business Development & Growth,Miscellaneous Expenses,40200,Miscellaneous Expenses,5034,fridge,24/04/2019,0137280,"1,634.94",Revenue,Buy It Direct Ltd  t/a  Appliancesdirect,77797,,
Chorley Borough Council,http://statistics.data.gov.uk/id/local-authority/30UE,Service Management & Support,1009,Customer & Digital,Vehicles and Plant Maintenance,30045,Direct Transport Costs,5016,Proxy switch replaced on (WIP 11561) and Infra-Red Sensor was replaced 22/03 (WIP 11602) repairs to bin lift,10/04/2019,0137074,667.88,Revenue,C P Davidson & Sons Ltd,21093,,
Chorley Borough Council,http://statistics.data.gov.uk/id/local-authority/30UE,Service Management & Support,1009,Customer & Digital,Vehicles and Plant Maintenance,30045,Direct Transport Costs,5016,"RV14 DVB- New window regulator addedwindow not opening",10/04/2019,0137075,425.29,Revenue,C P Davidson & Sons Ltd,21093,,
Chorley Borough Council,http://statistics.data.gov.uk/id/local-authority/30UE,Homelessness,1075,Early Intervention,Furniture - Purchase,40012,"Equipment, Furniture & Materia",5023,Syrian Project - furnishing of ADDRESS REDACTED,10/04/2019,0137177,"2,529.75",Revenue,Calico Enterprise,73338,,
Chorley Borough Council,http://statistics.data.gov.uk/id/local-authority/30UE,Unapportionable Central OHeads,1009,Customer & Digital,Emergency Call Out System,40096,Communication and Computing,5028,Out of hours standing charge April 2019 (including bank holidays),24/04/2019,0137018,696.28,Revenue,CallCare Ltd,20257,,
Chorley Borough Council,http://statistics.data.gov.uk/id/local-authority/30UE,Central Support Services,1009,Customer & Digital,Miscellaneous Expenses,40200,Miscellaneous Expenses,5034,GB-505918-OKS,10/04/2019,0137020,"1,628.40",Revenue,Canon (UK) Ltd,17492,,
Chorley Borough Council,http://statistics.data.gov.uk/id/local-authority/30UE,Central Support Services,1009,Customer & Digital,Miscellaneous Expenses,40200,Miscellaneous Expenses,5034,GB-506449-OKS,10/04/2019,0137020,112.13,Revenue,Canon (UK) Ltd,17492,,
Chorley Borough Council,http://statistics.data.gov.uk/id/local-authority/30UE,Unapportionable Central OHeads,1009,Customer & Digital,Computer - Support Services,40111,Communication and Computing,5028,Weekend EOY support for Sat 2nd March Sun 3rd March 19 for Revenues and Benefits and Technical support.,26/04/2019,0136620,"2,760.00",Revenue,Capita Business Services Ltd,17151,,
Chorley Borough Council,http://statistics.data.gov.uk/id/local-authority/30UE,Central Support Services,1009,Customer & Digital,IT Software - Annual Licences,40101,Communication and Computing,5028,Capita Remote Support Technical Maintenance renewal 01.04.19 - 31.03.20,03/04/2019,0136838,"15,000.00",Revenue,Capita Business Services Ltd,17151,,
Chorley Borough Council,http://statistics.data.gov.uk/id/local-authority/30UE,Central Support Services,1009,Customer & Digital,IT Software - Annual Licences,40101,Communication and Computing,5028,"Academy Software Cost for Business Rates Retail Discount (February 2019). 1,300.",18/04/2019,0137349,"1,300.00",Revenue,Capita Business Services Ltd,17151,,
Chorley Borough Council,http://statistics.data.gov.uk/id/local-authority/30UE,Corporate Management,1008,Customer & Digital,Contributions Parish Councils,40144,Grants and Subscriptions,5031,contributions parish,03/04/2019,0136977,345.00,Revenue,Charnock Richard Parish Cncl,16206,,
Chorley Borough Council,http://statistics.data.gov.uk/id/local-authority/30UE,Payments of Precepts to Parish,1018,Customer & Digital,Parish Council Tax,04500,Revenue Account Transfers,Balance,precepts parish council,03/04/2019,0136977,"29,155.00",Revenue,Charnock Richard Parish Cncl,16206,,
Chorley Borough Council,http://statistics.data.gov.uk/id/local-authority/30UE,Recognised Cap Grants & Conts,,Business Development & Growth,Contributions Parish Councils,40144,Grants and Subscriptions,5031,cil receipt,12/04/2019,0137112,"2,607.43",Revenue,Charnock Richard Parish Cncl,16206,,
Chorley Borough Council,http://statistics.data.gov.uk/id/local-authority/30UE,Central Support Services,1009,Business Development & Growth,Conferences - Staff,40120,Expenses,5030,Attendance of Housing 2019 - Chartered Institute of Housing`s annual event 25 June 2019,10/04/2019,0137021,556.00,Revenue,Chartered Institute Of Housing,16776,,
Chorley Borough Council,http://statistics.data.gov.uk/id/local-authority/30UE,Service Management & Support,1009,Customer & Digital,Tools & Equipment - Purchase,40003,"Equipment, Furniture & Materia",5023,"As per the ITQ for Ground Maintenance Equipment submitted via The Chest:1 x Vibrating plate - Belle PCX 60A",17/04/2019,0137292,789.00,Revenue,Cheshire Turf Machinery Ltd,76973,,
Chorley Borough Council,http://statistics.data.gov.uk/id/local-authority/30UE,Service Management & Support,1009,Customer & Digital,Tools & Equipment - Purchase,40003,"Equipment, Furniture & Materia",5023,Pramac Praxio PX4000 Generator,17/04/2019,0137292,365.00,Revenue,Cheshire Turf Machinery Ltd,76973,,
Chorley Borough Council,http://statistics.data.gov.uk/id/local-authority/30UE,Economic Development,1096,Business Development & Growth,Grants To Other Organisations,40127,Grants and Subscriptions,5031,Large core funding contract to supply Shopmobility service 01.04.19 - 31.03.20,26/04/2019,0137451,"17,000.00",Revenue,Chorley & South Ribble Shopmobility,18403,,
Chorley Borough Council,http://statistics.data.gov.uk/id/local-authority/30UE,Corporate Management,1008,Early Intervention,Taxi Testing & Vehicle Safety Report,40234,Services,5027,Tax Test Mar 19,26/04/2019,0137051,213.75,Revenue,Chorley Autocare Ltd,17110,,
Chorley Borough Council,http://statistics.data.gov.uk/id/local-authority/30UE,Corporate Management,1008,Early Intervention,Taxi Testing & Vehicle Safety Report,40234,Services,5027,MOT Mar 19,26/04/2019,0137051,"1,371.25",Revenue,Chorley Autocare Ltd,17110,,
Chorley Borough Council,http://statistics.data.gov.uk/id/local-authority/30UE,Community Development,1097,Early Intervention,Core Funding Grants,40133,Grants and Subscriptions,5031,Council`s Contribution to Youth Zone 2019,26/04/2019,0137250,"100,000.00",Revenue,Chorley Youth Zone,77339,,
Chorley Borough Council,http://statistics.data.gov.uk/id/local-authority/30UE,Central Support Services,1009,Business Development & Growth,Training Course Fees,17010,Indirect Employee Expenses,5002,Literacy Basics course cost for March 2019,03/04/2019,0136861,525.00,Revenue,Christine Edwards,77601,,
Chorley Borough Council,http://statistics.data.gov.uk/id/local-authority/30UE,Democratic Represent and  Mgnt,1007,Policy & Governance,Building Services Maintenance Other,20076,Fixtures and Fittings,5010,Work order number 29019849. Out of hours call out; sounder fault; device isolated; 25/1/19,05/04/2019,0136818,294.70,Revenue,Chubb Emergency Response,16965,,
Chorley Borough Council,http://statistics.data.gov.uk/id/local-authority/30UE,Democratic Represent and  Mgnt,1007,Policy & Governance,Building Services Maintenance Other,20076,Fixtures and Fittings,5010,"Work order number 29020961. Standard call out 2hrs = 189.73 (additional) Discover sounder beacon base = 99.92 ",05/04/2019,0136819,289.65,Revenue,Chubb Emergency Response,16965,,
Chorley Borough Council,http://statistics.data.gov.uk/id/local-authority/30UE,Unapportionable Central OHeads,1009,Policy & Governance,Publications,40054,"Printing, Stationery & General",5026,CIPFA Publications Subscription 01 April 2019 - 31 March 2020,10/04/2019,0136986,"2,767.50",Revenue,CIPFA Business Ltd,16247,,
Chorley Borough Council,http://statistics.data.gov.uk/id/local-authority/30UE,Unapportionable Central OHeads,1009,Policy & Governance,IT Software - Annual Licences,40101,Communication and Computing,5028,Civica ICON Hosted - Annual Licence Subscription +Transaction Charges Year 1 (01/04/19 - 31/03/20),12/04/2019,0137215,"21,112.48",Revenue,Civica UK Limited,17463,,
Chorley Borough Council,http://statistics.data.gov.uk/id/local-authority/30UE,Unapportionable Central OHeads,1009,Business Development & Growth,Planned Maintenance,20006,Repairs Maintenance & Alts,5005,Blanket order for PPM works,12/04/2019,0136920,368.00,Revenue,Classic Lifts Limited,20897,,
Chorley Borough Council,http://statistics.data.gov.uk/id/local-authority/30UE,Corporate Management,1008,Customer & Digital,Contributions Parish Councils,40144,Grants and Subscriptions,5031,contributions parish,03/04/2019,0136970,"11,458.00",Revenue,Clayton-Le-Woods Parish Coun.,17024,,
Chorley Borough Council,http://statistics.data.gov.uk/id/local-authority/30UE,Payments of Precepts to Parish,1018,Customer & Digital,Parish Council Tax,04500,Revenue Account Transfers,Balance,precepts parish council,03/04/2019,0136970,"108,272.00",Revenue,Clayton-Le-Woods Parish Coun.,17024,,
Chorley Borough Council,http://statistics.data.gov.uk/id/local-authority/30UE,Democratic Represent and  Mgnt,1007,Policy & Governance,Exhibitions & Special Events,40158,Miscellaneous Expenses,5034,"Supply and installation of museum specification display case as per quote, reference 47391. Case to be installed in Astley Hall",26/04/2019,0137406,"1,497.65",Revenue,ClickNetherfield Ltd,66887,,
Chorley Borough Council,http://statistics.data.gov.uk/id/local-authority/30UE,Corporate Management,1008,Customer & Digital,Contributions Parish Councils,40144,Grants and Subscriptions,5031,contributions parish,03/04/2019,0136972,"10,576.00",Revenue,Coppull Parish Council,17025,,
Chorley Borough Council,http://statistics.data.gov.uk/id/local-authority/30UE,Payments of Precepts to Parish,1018,Customer & Digital,Parish Council Tax,04500,Revenue Account Transfers,Balance,precepts/parish council,03/04/2019,0136972,"86,124.00",Revenue,Coppull Parish Council,17025,,
Chorley Borough Council,http://statistics.data.gov.uk/id/local-authority/30UE,Recognised Cap Grants & Conts,,Business Development & Growth,Contributions Parish Councils,40144,Grants and Subscriptions,5031,cil receipt,12/04/2019,0137113,"100,816.80",Revenue,Coppull Parish Council,17025,,
Chorley Borough Council,http://statistics.data.gov.uk/id/local-authority/30UE,Central Support Services,1009,Customer & Digital,Computer Equipment-Purchase,40098,Communication and Computing,5028, Steeley Lane CCTV Installation Works Chorley Concrete base installation for 10m column ,18/04/2019,0134434,"4,544.22",Revenue,Core Integrated Solutions,77043,,
Chorley Borough Council,http://statistics.data.gov.uk/id/local-authority/30UE,Central Support Services,1009,Customer & Digital,Computer Equipment-Purchase,40098,Communication and Computing,5028," Steeley Lane CCTV Installation Works Chorley Concrete base installation for 10m column 1 
",18/04/2019,0135933,901.52,Revenue,Core Integrated Solutions,77043,,
Chorley Borough Council,http://statistics.data.gov.uk/id/local-authority/30UE,Central Support Services,1009,Customer & Digital,Computer Equipment-Purchase,40098,Communication and Computing,5028,Relocation of both ends of Fibre optic cable running from the Union Street Offices to the Police Station,18/04/2019,0136222,"1,008.93",Revenue,Core Integrated Solutions,77043,,
Chorley Borough Council,http://statistics.data.gov.uk/id/local-authority/30UE,Unapportionable Central OHeads,1009,Business Development & Growth,General Repairs - Reactive,20004,Repairs Maintenance & Alts,5005,Blanket reactive order,12/04/2019,0137176,723.85,Revenue,Corlett Electrical Eng Co Ltd,16271,,
Chorley Borough Council,http://statistics.data.gov.uk/id/local-authority/30UE,Unapportionable Central OHeads,1009,Business Development & Growth,Planned Maintenance,20006,Repairs Maintenance & Alts,5005,Blanket PPM Dec 2018 onwards,24/04/2019,0137199,"2,326.83",Revenue,Corlett Electrical Eng Co Ltd,16271,,
Chorley Borough Council,http://statistics.data.gov.uk/id/local-authority/30UE,Economic Development,1096,Business Development & Growth,Fixtures & Fittings - Purchase,20027,Fixtures and Fittings,5010,"Please see quote ref : C 5481 re Chorley Market Upgrading of Lighting to LEDSupply and install 27 normal twin LED fittings",17/04/2019,0137281,"4,966.11",Revenue,Corlett Electrical Eng Co Ltd,16271,,
Chorley Borough Council,http://statistics.data.gov.uk/id/local-authority/30UE,Economic Development,1096,Business Development & Growth,Fixtures & Fittings - Purchase,20027,Fixtures and Fittings,5010,"Supply and install 17 emergency twin LED fittings (costs also include for the removal of the existing fittings from site)",17/04/2019,0137281,"4,479.50",Revenue,Corlett Electrical Eng Co Ltd,16271,,
Chorley Borough Council,http://statistics.data.gov.uk/id/local-authority/30UE,Central Support Services,1009,Business Development & Growth,Bailiffs' Fees,40071,Services,5027,"Serve Notice -Traveller Serve Notice - 12/03/2019 @ 350.00 x 1 Eviction - Traveller Eviction x 2 Enforcement Agents - 12/03/2019",17/04/2019,0136983,350.00,Revenue,COURT ENFORCEMENT SPECIALISTS LTD,77924,,
Chorley Borough Council,http://statistics.data.gov.uk/id/local-authority/30UE,Economic Development,1096,Business Development & Growth,Bailiffs' Fees,40071,Services,5027,Markets contribution 920.00,17/04/2019,0136983,750.00,Revenue,COURT ENFORCEMENT SPECIALISTS LTD,77924,,
Chorley Borough Council,http://statistics.data.gov.uk/id/local-authority/30UE,Central Support Services,1009,Early Intervention,Bailiffs' Fees,40071,Services,5027,Traveller Encampment Removal - Chorley North Industrial Park,24/04/2019,0137425,"1,100.00",Revenue,COURT ENFORCEMENT SPECIALISTS LTD,77924,,
Chorley Borough Council,http://statistics.data.gov.uk/id/local-authority/30UE,Capital,Capital,Customer & Digital,Equipment,03014,Capital Expenditure,Capital,"Neo plastic wheeled bin 240 litreColour : GREEN Quantity : 600including Chorley logo",26/04/2019,0137211,"4,590.00",Capital,Craemer UK Ltd,64712,,
Chorley Borough Council,http://statistics.data.gov.uk/id/local-authority/30UE,Capital,Capital,Customer & Digital,Equipment,03014,Capital Expenditure,Capital,"Neo plastic wheeled bin 240 litreColour : BLUEQuantity : 600 Including Chorley logo",26/04/2019,0137407,"4,590.00",Capital,Craemer UK Ltd,64712,,
Chorley Borough Council,http://statistics.data.gov.uk/id/local-authority/30UE,Unapportionable Central OHeads,1009,Policy & Governance,Search Fees,40068,Services,5027,PLUS V4 UK Package 29/03/19 to 27/06/2020. Customer Ref: 109889573,10/04/2019,0136994,"4,000.00",Revenue,Creditsafe Business Solutions Limited,77447,,
Chorley Borough Council,http://statistics.data.gov.uk/id/local-authority/30UE,Corporate Management,1008,Customer & Digital,Contributions Parish Councils,40144,Grants and Subscriptions,5031,contributions parish,03/04/2019,0136978,"1,440.00",Revenue,Croston Parish Council,17026,,
Chorley Borough Council,http://statistics.data.gov.uk/id/local-authority/30UE,Payments of Precepts to Parish,1018,Customer & Digital,Parish Council Tax,04500,Revenue Account Transfers,Balance,precepts/parish council,03/04/2019,0136978,"23,060.00",Revenue,Croston Parish Council,17026,,
Chorley Borough Council,http://statistics.data.gov.uk/id/local-authority/30UE,Capital,Capital,Business Development & Growth,Equipment,03014,Capital Expenditure,Capital,"Bridge for Yarrow Meadows REF 19735 F1 Qt. Hardood  7.5m, width between parapets 0.825 design manufacture and deliver",03/04/2019,0136758,"4,170.00",Capital,CTS Bridges,77811,,
Chorley Borough Council,http://statistics.data.gov.uk/id/local-authority/30UE,Corporate Management,1008,Customer & Digital,Contributions Parish Councils,40144,Grants and Subscriptions,5031,contributions parish,03/04/2019,0136973,2.00,Revenue,Cuerden Parish Council,16207,,
Chorley Borough Council,http://statistics.data.gov.uk/id/local-authority/30UE,Payments of Precepts to Parish,1018,Customer & Digital,Parish Council Tax,04500,Revenue Account Transfers,Balance,precepts parish council,03/04/2019,0136973,"1,148.00",Revenue,Cuerden Parish Council,16207,,
Chorley Borough Council,http://statistics.data.gov.uk/id/local-authority/30UE,Capital,Capital,Business Development & Growth,Other Capital Related Fees,03024,Capital Expenditure,Capital,"quote T11329.  2nr Contemporary Bench, 2nr Companion Seat, 2nr 1.8 Ascot Bench, 2nr 1.2m Ascot bench.  Primrose Gardens",03/04/2019,0136823,"1,670.80",Capital,Cyan t/a Lindsey,61782,,
Chorley Borough Council,http://statistics.data.gov.uk/id/local-authority/30UE,Central Support Services,1009,Customer & Digital,Computer Equipment-Purchase,40098,Communication and Computing,5028,25x QODE� Ultimate Lite Keyboard Case for iPad Pro (9.7�) and iPad Air 2,18/04/2019,0136316,"1,125.00",Revenue,DAC Technology Ltd,76398,,
Chorley Borough Council,http://statistics.data.gov.uk/id/local-authority/30UE,Central Support Services,1009,Customer & Digital,Computer Equipment-Purchase,40098,Communication and Computing,5028,FREIGHT,18/04/2019,0136316,12.00,Revenue,DAC Technology Ltd,76398,,
Chorley Borough Council,http://statistics.data.gov.uk/id/local-authority/30UE,Central Support Services,1009,Customer & Digital,Computer Equipment-Purchase,40098,Communication and Computing,5028,"25 x QODE� Ultimate Lite Keyboard Case for iPad 9.7 6th Generation (2018) F5L904eaBLK 2375",18/04/2019,0136519,"2,375.00",Revenue,DAC Technology Ltd,76398,,
Chorley Borough Council,http://statistics.data.gov.uk/id/local-authority/30UE,Central Support Services,1009,Customer & Digital,Computer Equipment-Purchase,40098,Communication and Computing,5028,FREIGHT,18/04/2019,0136519,12.00,Revenue,DAC Technology Ltd,76398,,
Chorley Borough Council,http://statistics.data.gov.uk/id/local-authority/30UE,Central Support Services,1009,Policy & Governance,Miscellaneous Expenses,40200,Miscellaneous Expenses,5034,"1 x Vigor 2862 Series ADSL/VDSL Business Class Router/Firewall Del. to Chorley Town Hall, Market Street, Chorley, PR7 1DP",17/04/2019,0137264,249.00,Revenue,DAC Technology Ltd,76398,,
Chorley Borough Council,http://statistics.data.gov.uk/id/local-authority/30UE,Central Support Services,1009,Policy & Governance,Miscellaneous Expenses,40200,Miscellaneous Expenses,5034,freight,17/04/2019,0137264,12.00,Revenue,DAC Technology Ltd,76398,,
Chorley Borough Council,http://statistics.data.gov.uk/id/local-authority/30UE,Economic Development,1096,Business Development & Growth,Miscellaneous Expenses,40200,Miscellaneous Expenses,5034,"Hytera MD785 UHF 1 25 watts DMR & analogue mobile, Power supply for mobile radio 300W, Panorama UHF Clip Dipole",12/04/2019,0137192,449.00,Revenue,DCS 2 Way Radio Ltd,77666,,
Chorley Borough Council,http://statistics.data.gov.uk/id/local-authority/30UE,Service Management & Support,1009,Customer & Digital,Special Repairs,20007,Repairs Maintenance & Alts,5005,20 wooden sleepers,05/04/2019,0136985,500.00,Revenue,Derek Fox & Sons,50884,,
Chorley Borough Council,http://statistics.data.gov.uk/id/local-authority/30UE,Democratic Represent and  Mgnt,1007,Business Development & Growth,Maintenance/Nature Reserves,20045,Grounds Maintenance Costs,5013,"Path creation on Yarrow Meadows - 4 days digger+dumper, 1 day roller, 2 days installation of post and wire fencing",10/04/2019,0137001,"1,775.00",Revenue,Derek R Smith,21092,,
Chorley Borough Council,http://statistics.data.gov.uk/id/local-authority/30UE,Capital,Capital,Policy & Governance,Furniture,03015,Capital Expenditure,Capital,"6 x Aspen AS12 Desk, 6 x BB1000 - 100w cable basket, 6 x OC97FDA Orthopaedica Task Chair Havana Black",26/04/2019,0137084,"1,810.67",Capital,Diamond Business Interiors Ltd,53722,,
Chorley Borough Council,http://statistics.data.gov.uk/id/local-authority/30UE,Central Support Services,1009,Customer & Digital,ICT Software Implementation,40114,Communication and Computing,5028,1 day remote consultancy to migrate PARIS system to a new server and upgrade to V5,12/04/2019,0136805,"1,050.00",Revenue,Document Output Solutions UK Ltd,21304,,
Chorley Borough Council,http://statistics.data.gov.uk/id/local-authority/30UE,Corporate Management,1008,Customer & Digital,Contributions Parish Councils,40144,Grants and Subscriptions,5031,contributions parish,03/04/2019,0136976,"1,636.00",Revenue,Eccleston Parish Council,17027,,
Chorley Borough Council,http://statistics.data.gov.uk/id/local-authority/30UE,Payments of Precepts to Parish,1018,Customer & Digital,Parish Council Tax,04500,Revenue Account Transfers,Balance,precepts parish council,03/04/2019,0136976,"45,654.00",Revenue,Eccleston Parish Council,17027,,
Chorley Borough Council,http://statistics.data.gov.uk/id/local-authority/30UE,Recognised Cap Grants & Conts,,Business Development & Growth,Contributions Parish Councils,40144,Grants and Subscriptions,5031,cil receipt,12/04/2019,0137115,"1,841.18",Revenue,Eccleston Parish Council,17027,,
Chorley Borough Council,http://statistics.data.gov.uk/id/local-authority/30UE,Corporate Management,1008,Business Development & Growth,Miscellaneous Expenses,40200,Miscellaneous Expenses,5034,"18 x Gum service packs @52.50 each total 945 + Next day delivery @55 Total 1000",10/04/2019,0136855,"1,000.00",Revenue,Eco Removal Systems Limited,76591,,
Chorley Borough Council,http://statistics.data.gov.uk/id/local-authority/30UE,Capital,Capital,Business Development & Growth,Other Capital Related Fees,03024,Capital Expenditure,Capital,"Primrose Gardens Steel bollards, galvanised and powder coated. 1500mm 6x114mm dia fixed and 2nr 114mm dia,  removable",03/04/2019,0136820,657.00,Capital,Edwards Wrought Iron Ltd,77654,,
Chorley Borough Council,http://statistics.data.gov.uk/id/local-authority/30UE,Central Support Services,1009,Customer & Digital,Mobile Voice and Data,40086,Communication and Computing,5028,03-Apr-19,17/04/2019,0137254,"1,638.31",Revenue,EE - Orange,16486,,
Chorley Borough Council,http://statistics.data.gov.uk/id/local-authority/30UE,Corporate Management,1008,Policy & Governance,Exhibitions & Special Events,40158,Miscellaneous Expenses,5034,Provision of Easter arts & Crafts over HT,24/04/2019,0137300,520.00,Revenue,Emma Wood - ARTventures South Manchester,77977,,
Chorley Borough Council,http://statistics.data.gov.uk/id/local-authority/30UE,Capital,Capital,Business Development & Growth,Main Contractor,03007,Capital Expenditure,Capital,Market Walk Extension Contract - Phase 2,24/04/2019,0137085,"1,164,771.98",Capital,Eric Wright Construction Ltd,76464,,
Chorley Borough Council,http://statistics.data.gov.uk/id/local-authority/30UE,Capital,Capital,Business Development & Growth,Main Contractor,03007,Capital Expenditure,Capital,Fleet Street Extra Care,24/04/2019,0137198,"43,764.39",Capital,Eric Wright Construction Ltd,76464,,
Chorley Borough Council,http://statistics.data.gov.uk/id/local-authority/30UE,Capital,Capital,Business Development & Growth,Main Contractor,03007,Capital Expenditure,Capital,Fleet Street Extra Care,24/04/2019,0137198,"354,093.70",Capital,Eric Wright Construction Ltd,76464,,
Chorley Borough Council,http://statistics.data.gov.uk/id/local-authority/30UE,Corporate Management,1008,Customer & Digital,Contributions Parish Councils,40144,Grants and Subscriptions,5031,contributions parish,03/04/2019,0136971,"1,709.00",Revenue,Euxton Parish Council,16838,,
Chorley Borough Council,http://statistics.data.gov.uk/id/local-authority/30UE,Payments of Precepts to Parish,1018,Customer & Digital,Parish Council Tax,04500,Revenue Account Transfers,Balance,precepts parish council,03/04/2019,0136971,"165,190.00",Revenue,Euxton Parish Council,16838,,
Chorley Borough Council,http://statistics.data.gov.uk/id/local-authority/30UE,Recognised Cap Grants & Conts,,Business Development & Growth,Contributions Parish Councils,40144,Grants and Subscriptions,5031,cil receipt,12/04/2019,0137120,"2,644.85",Revenue,Euxton Parish Council,16838,,
Chorley Borough Council,http://statistics.data.gov.uk/id/local-authority/30UE,Open Spaces,1038,Business Development & Growth,Miscellaneous Expenses,40200,Miscellaneous Expenses,5034,Delivery Weds 27th March. Blainscough Wood Community Orchard trees and fruit bushes.  As in quotation LINDCBC Fruit.,18/04/2019,0137363,625.85,Revenue,Everglades Nurseries Ltd,20202,,
Chorley Borough Council,http://statistics.data.gov.uk/id/local-authority/30UE,Other Short Term Creditors,,Customer & Digital,Other Creditors,00093,Balance Sheet,Balance,refund dupliacte,24/04/2019,0137255,258.43,Revenue,Eversheds-Sutherland (International) LLP,77982,,
Chorley Borough Council,http://statistics.data.gov.uk/id/local-authority/30UE,Service Management & Support,1009,Customer & Digital,Vehicles and Plant Maintenance,30045,Direct Transport Costs,5016,"quotation Q10483 3 x JD-TCA15954 PTO,GUARD OUTER @ 128.06 ea, 3 x JD-TCA15955 PTO,GUARD INNER  @ 78.39 ea",12/04/2019,0137086,557.41,Revenue,F R Sharrock Ltd,18091,,
Chorley Borough Council,http://statistics.data.gov.uk/id/local-authority/30UE,Service Management & Support,1009,Customer & Digital,Vehicles and Plant Maintenance,30045,Direct Transport Costs,5016,"quotation Q10482 items for Wessex  1 x belt cover guard  1 x LED light unit+J32",18/04/2019,0137087,657.30,Revenue,F R Sharrock Ltd,18091,,
Chorley Borough Council,http://statistics.data.gov.uk/id/local-authority/30UE,Control Accounts,Control,Business Development & Growth,Manual Control Account,00001,Balance Sheet,Balance,,26/04/2019,0137449,"19,980.00",Revenue,First Choice Holidays Limited,77992,,
Chorley Borough Council,http://statistics.data.gov.uk/id/local-authority/30UE,Economic Development,1096,Business Development & Growth,Publicity - Advertising,40157,Miscellaneous Expenses,5034,"To supply bunting (LYLM) for Chorley Markets 200m @ 2.90 = 580.00",03/04/2019,0136821,580.00,Revenue,Gala Graphics Ltd,77468,,
Chorley Borough Council,http://statistics.data.gov.uk/id/local-authority/30UE,Business Support,1095,Business Development & Growth,Gas,20014,Energy Costs,5006,26 Gillibrand St,24/04/2019,0137174,392.48,Revenue,Gazprom Energy,56502,,
Chorley Borough Council,http://statistics.data.gov.uk/id/local-authority/30UE,Unapportionable Central OHeads,1009,Business Development & Growth,Planned Maintenance,20006,Repairs Maintenance & Alts,5005,Service contract for automatic doors at all sites required,12/04/2019,0136760,540.00,Revenue,Geze UK Ltd,18836,,
Chorley Borough Council,http://statistics.data.gov.uk/id/local-authority/30UE,Service Management & Support,1009,Customer & Digital,Vehicles and Plant Maintenance,30045,Direct Transport Costs,5016,"Tractor recovered, tractor split at bell housing, clutch and shaft replaced. oil replaced, tested and returned to Bengal Street depot. ",12/04/2019,0137070,"3,689.93",Revenue,Gibsons Garden Machinery Ltd,17550,,
Chorley Borough Council,http://statistics.data.gov.uk/id/local-authority/30UE,Democratic Represent and  Mgnt,1007,Policy & Governance,Exhibitions,40176,Miscellaneous Expenses,5034,"9xBWPA series 8 books (67.50) 17xBWPA series 9 books (212.50) British Wildlife Photography Exhibition at Astley Hall.",05/04/2019,0136873,250.00,Revenue,GMC Publications LTD,76974,,
Chorley Borough Council,http://statistics.data.gov.uk/id/local-authority/30UE,Central Support Services,1009,Early Intervention,Vandalism Repairs,20005,Repairs Maintenance & Alts,5005,Contract for Graffiti removal 2017,03/04/2019,0136525,735.00,Revenue,Graffiti Away,76316,,
Chorley Borough Council,http://statistics.data.gov.uk/id/local-authority/30UE,Business Support,1095,Business Development & Growth,Promotional Expenses,40159,Miscellaneous Expenses,5034,1 x 750 Single Red Wooden Roses Individually Wrapped,17/04/2019,0137243,293.00,Revenue,Grafton Projects Limited,76545,,
Chorley Borough Council,http://statistics.data.gov.uk/id/local-authority/30UE,Business Support,1095,Business Development & Growth,Promotional Expenses,40159,Miscellaneous Expenses,5034,Direct Delivery,17/04/2019,0137243,12.00,Revenue,Grafton Projects Limited,76545,,
Chorley Borough Council,http://statistics.data.gov.uk/id/local-authority/30UE,Unapportionable Central OHeads,1009,Policy & Governance,Exhibitions & Special Events,40158,Miscellaneous Expenses,5034,Social Media Marketing for Market Walk for April & May 2019,12/04/2019,0136874,"1,000.00",Revenue,Gravity,77837,,
Chorley Borough Council,http://statistics.data.gov.uk/id/local-authority/30UE,Economic Development,1096,Business Development & Growth,Miscellaneous Expenses,40200,Miscellaneous Expenses,5034,"Heavy Duty PVC Bunting Red / White / Blue / Yellow / Green /Orange 30cmx20cmx10m, 85@9.00 each Delivery 22.50",18/04/2019,0137358,787.50,Revenue,Hampshire Flag Company,22296,,
Chorley Borough Council,http://statistics.data.gov.uk/id/local-authority/30UE,Central Support Services,1009,Business Development & Growth,Operational Employees Salaries,10000,Direct Employee Expenses,5001,Agency fees for building surveyor`s,12/04/2019,0136671,949.75,Revenue,Hays Senior Finance,20078,,
Chorley Borough Council,http://statistics.data.gov.uk/id/local-authority/30UE,Central Support Services,1009,Business Development & Growth,Operational Employees Salaries,10000,Direct Employee Expenses,5001,Agency fees for building surveyor`s,12/04/2019,0136672,949.75,Revenue,Hays Senior Finance,20078,,
Chorley Borough Council,http://statistics.data.gov.uk/id/local-authority/30UE,Central Support Services,1009,Business Development & Growth,Operational Employees Salaries,10000,Direct Employee Expenses,5001,Agency fees for building surveyor`s,12/04/2019,0136673,949.75,Revenue,Hays Senior Finance,20078,,
Chorley Borough Council,http://statistics.data.gov.uk/id/local-authority/30UE,Central Support Services,1009,Business Development & Growth,Operational Employees Salaries,10000,Direct Employee Expenses,5001,Agency fees for building surveyor`s,12/04/2019,0136674,949.75,Revenue,Hays Senior Finance,20078,,
Chorley Borough Council,http://statistics.data.gov.uk/id/local-authority/30UE,Democratic Represent and  Mgnt,1007,Policy & Governance,Grants To Other Organisations,40127,Grants and Subscriptions,5031,Councillor Community Grant 2018/2019 - Grant does not have a fixed term period,17/04/2019,0137231,250.00,Revenue,Heapey & Wheelton Village Hall,19826,,
Chorley Borough Council,http://statistics.data.gov.uk/id/local-authority/30UE,Corporate Management,1008,Customer & Digital,Contributions Parish Councils,40144,Grants and Subscriptions,5031,contributions parish,03/04/2019,0136967,327.00,Revenue,Heapey Parish Council,17028,,
Chorley Borough Council,http://statistics.data.gov.uk/id/local-authority/30UE,Payments of Precepts to Parish,1018,Customer & Digital,Parish Council Tax,04500,Revenue Account Transfers,Balance,precepts parish council,03/04/2019,0136967,"8,923.00",Revenue,Heapey Parish Council,17028,,
Chorley Borough Council,http://statistics.data.gov.uk/id/local-authority/30UE,Corporate Management,1008,Customer & Digital,Contributions Parish Councils,40144,Grants and Subscriptions,5031,contributions parish,03/04/2019,0136974,335.00,Revenue,Heath Charnock Parish Council,16208,,
Chorley Borough Council,http://statistics.data.gov.uk/id/local-authority/30UE,Payments of Precepts to Parish,1018,Customer & Digital,Parish Council Tax,04500,Revenue Account Transfers,Balance,precepts/parish council,03/04/2019,0136974,"7,765.00",Revenue,Heath Charnock Parish Council,16208,,
Chorley Borough Council,http://statistics.data.gov.uk/id/local-authority/30UE,Democratic Represent and  Mgnt,1007,Policy & Governance,Grants To Other Organisations,40127,Grants and Subscriptions,5031,Councillor Community Grant 2018/2019 - Grant does not have a fixed term period,17/04/2019,0137232,458.00,Revenue,Help The Homeless (Chorley),16716,,
Chorley Borough Council,http://statistics.data.gov.uk/id/local-authority/30UE,Capital,Capital,Customer & Digital,Other Capital Grants/Loans,03000,Capital Expenditure,Capital,contributions,10/04/2019,0136962,704.53,Capital,Heritage Trust for the North West,77042,,
Chorley Borough Council,http://statistics.data.gov.uk/id/local-authority/30UE,Corporate Management,1008,Customer & Digital,Contributions Parish Councils,40144,Grants and Subscriptions,5031,contributions,03/04/2019,0136975,544.00,Revenue,Heskin Parish Council,17029,,
Chorley Borough Council,http://statistics.data.gov.uk/id/local-authority/30UE,Payments of Precepts to Parish,1018,Customer & Digital,Parish Council Tax,04500,Revenue Account Transfers,Balance,precepts/parish council,03/04/2019,0136975,"11,751.00",Revenue,Heskin Parish Council,17029,,
Chorley Borough Council,http://statistics.data.gov.uk/id/local-authority/30UE,Central Support Services,1009,Early Intervention,Miscellaneous Expenses,40200,Miscellaneous Expenses,5034,Emergency boarding for High Heyes Kennels,12/04/2019,0137006,481.00,Revenue,High Heyes Kennells & Cattery,21663,,
Chorley Borough Council,http://statistics.data.gov.uk/id/local-authority/30UE,Central Support Services,1009,Business Development & Growth,Professional Fees,40063,Services,5027,Project management works for Shady Lane Stages 1-4a,12/04/2019,0136923,"2,100.00",Revenue,Hive Land & Planning Limited,77330,,
Chorley Borough Council,http://statistics.data.gov.uk/id/local-authority/30UE,Corporate Management,1008,Customer & Digital,Contributions Parish Councils,40144,Grants and Subscriptions,5031,contributions parish,03/04/2019,0136963,167.00,Revenue,Hoghton Parish Council,16188,,
Chorley Borough Council,http://statistics.data.gov.uk/id/local-authority/30UE,Payments of Precepts to Parish,1018,Customer & Digital,Parish Council Tax,04500,Revenue Account Transfers,Balance,precepts/parish council,03/04/2019,0136963,"5,833.00",Revenue,Hoghton Parish Council,16188,,
Chorley Borough Council,http://statistics.data.gov.uk/id/local-authority/30UE,Corporate Management,1008,Policy & Governance,Other Fees,40212,Miscellaneous Expenses,5034,Subsidy for the provision of a meals on wheels service in Chorley,17/04/2019,0136601,"1,870.21",Revenue,I Care GB Ltd,77247,,
Chorley Borough Council,http://statistics.data.gov.uk/id/local-authority/30UE,Corporate Management,1008,Policy & Governance,Other Fees,40212,Miscellaneous Expenses,5034,Subsidy for the provision of a meals on wheels service in Chorley from 4 to 31 March 2019,17/04/2019,0137208,"1,862.38",Revenue,I Care GB Ltd,77247,,
Chorley Borough Council,http://statistics.data.gov.uk/id/local-authority/30UE,Unapportionable Central OHeads,1009,Chief Executive,Corp Training Organisational Development,17006,Indirect Employee Expenses,5002,Artwork for the staff experience,10/04/2019,0136924,"1,045.00",Revenue,Iced Graphics,77424,,
Chorley Borough Council,http://statistics.data.gov.uk/id/local-authority/30UE,Central Support Services,1009,Customer & Digital,Consultants` Fees,40077,Services,5027,Enterprise for LI module Enterprise enhancements Enterprise constultancy Enterprise advanced training 2500,18/04/2019,0136625,"2,500.00",Revenue,IDOX Software Limited,17542,,
Chorley Borough Council,http://statistics.data.gov.uk/id/local-authority/30UE,Unapportionable Central OHeads,1009,Customer & Digital,`Professional Fees,14011,Direct Employee Expenses,5001,NAFN subscription 2019-20,03/04/2019,0136959,"1,500.00",Revenue,iNetwork (Tameside Council),19554,,
Chorley Borough Council,http://statistics.data.gov.uk/id/local-authority/30UE,Corporate Management,1008,Customer & Digital,`Professional Fees,14011,Direct Employee Expenses,5001,Annual Small Organisational Membership 6,03/04/2019,0136960,300.00,Revenue,Institute Of Licensing,16987,,
Chorley Borough Council,http://statistics.data.gov.uk/id/local-authority/30UE,Democratic Represent and  Mgnt,1007,Policy & Governance,Consultants` Fees,40077,Services,5027,Consultant conservator for a paintings review on Astley Hall fine art collection. 15th March - 28th March. 4 days at 250 = 1000,10/04/2019,0137025,"1,000.00",Revenue,Janice Porter,77769,,
Chorley Borough Council,http://statistics.data.gov.uk/id/local-authority/30UE,Democratic Represent and  Mgnt,1007,Business Development & Growth,Grounds Maintenance Contractor,20043,Grounds Maintenance Costs,5013,50nr Treated Sawn Softwood Posts with 4 way weathered top sawn finish.  1.500 x 0.100 x 0.100. Quote No C-008852,24/04/2019,0136999,282.50,Revenue,John H Mayor & Sons Ltd,16635,,
Chorley Borough Council,http://statistics.data.gov.uk/id/local-authority/30UE,Capital,Capital,Business Development & Growth,Other Capital Related Fees,03024,Capital Expenditure,Capital,"Construction and landscaping works, Primrose Gardens, Chorley tendered at 67,677.85. Works to be complete end March 2019.",10/04/2019,0136937,"63,679.85",Capital,John Wade Groundworks Ltd,76676,,
Chorley Borough Council,http://statistics.data.gov.uk/id/local-authority/30UE,Service Management & Support,1009,Customer & Digital,Vehicles and Plant Maintenance,30045,Direct Transport Costs,5016,Service B received for RV14 DVB,03/04/2019,0136894,634.00,Revenue,Johnston Sweepers Limited,20778,,
Chorley Borough Council,http://statistics.data.gov.uk/id/local-authority/30UE,Elections,1012,Policy & Governance,Statutory Notices,40160,Miscellaneous Expenses,5034,Borough Notice of election - Lancashire evening Post 22 March 2019 and Chorley Guardian 26 March 2019 - ref NMC6012898,03/04/2019,0136834,"1,679.94",Revenue,JPI Media - Johnston Publishing Ltd,20072,,
Chorley Borough Council,http://statistics.data.gov.uk/id/local-authority/30UE,Elections,1012,Policy & Governance,Statutory Notices,40160,Miscellaneous Expenses,5034,Parish Notice of Election - Lancashire Evening Post on 22 Mar 2019 and Chorley Guardian on 26 Mar 2019 - ref NMC6012879,03/04/2019,0136835,"1,866.60",Revenue,JPI Media - Johnston Publishing Ltd,20072,,
Chorley Borough Council,http://statistics.data.gov.uk/id/local-authority/30UE,Development Control,1091,Policy & Governance,Statutory Notices,40160,Miscellaneous Expenses,5034,Chorley Guardian - public notices,24/04/2019,0137376,498.18,Revenue,JPI Media - Johnston Publishing Ltd,20072,,
Chorley Borough Council,http://statistics.data.gov.uk/id/local-authority/30UE,Capital,Capital,Early Intervention,Grants,03002,Capital Expenditure,Capital,disable adaption,03/04/2019,0136953,"3,047.50",Capital,K Berry Ltd,16421,,
Chorley Borough Council,http://statistics.data.gov.uk/id/local-authority/30UE,Business Support,1095,Business Development & Growth,Professional Fees,40063,Services,5027,"7.5% Commission on new 5 year lease to Vodafone at a rent of 37,000pax.Vat at prevailing rate = 555.00 Total 3,300.00",12/04/2019,0137230,"2,775.00",Revenue,Knight Frank LLP,77571,,
Chorley Borough Council,http://statistics.data.gov.uk/id/local-authority/30UE,Development Control,1091,Customer & Digital,Tools & Equipment - Purchase,40003,"Equipment, Furniture & Materia",5023,"Service Level Agreement Archaeological Advice to Chorley Council, 2018 - 2019",17/04/2019,0137193,"1,265.63",Revenue,Lancashire Archaeological Advisory Services,75761,,
Chorley Borough Council,http://statistics.data.gov.uk/id/local-authority/30UE,Development Control,1091,Customer & Digital,Tools & Equipment - Purchase,40003,"Equipment, Furniture & Materia",5023,"Service Level Agreement Archaeological Advice to Chorley Council, 2018 - 2019",17/04/2019,0137194,"1,265.63",Revenue,Lancashire Archaeological Advisory Services,75761,,
Chorley Borough Council,http://statistics.data.gov.uk/id/local-authority/30UE,Capital,Capital,Business Development & Growth,Main Contractor,03007,Capital Expenditure,Capital,"Foot/cycle way works and vehicle parking on Park Road, between Astley Par & Rectory Close and slurry seal by 16th November.",26/04/2019,0136436,"37,343.55",Capital,Lancashire County Council,20027,,
Chorley Borough Council,http://statistics.data.gov.uk/id/local-authority/30UE,Unapportionable Central OHeads,1009,Policy & Governance,Exhibitions & Special Events,40158,Miscellaneous Expenses,5034,,03/04/2019,0136908,254.40,Revenue,Lancashire County Council,17758,,
Chorley Borough Council,http://statistics.data.gov.uk/id/local-authority/30UE,Capital,Capital,Business Development & Growth,Other Capital Grants/Loans,03000,Capital Expenditure,Capital,Replacement of two temporary bus stops on Ordnance Road near Aldi & additional bus stop for the village centre op,05/04/2019,0137003,"40,000.00",Capital,Lancashire County Council,17758,,
Chorley Borough Council,http://statistics.data.gov.uk/id/local-authority/30UE,Central Support Services,1009,Customer & Digital,Computer - Support Services,40111,Communication and Computing,5028,"2 days engineer to examine & report on configuration of  BTLS services for Chorley BC, including the Web Proxy & Email filters",10/04/2019,0137066,714.00,Revenue,Lancashire County Council,17758,,
Chorley Borough Council,http://statistics.data.gov.uk/id/local-authority/30UE,Capital,Capital,Early Intervention,Grants,03002,Capital Expenditure,Capital,ADDRESS REDACTED,18/04/2019,0137367,"3,354.00",Capital,Lancashire County Council,17758,,
Chorley Borough Council,http://statistics.data.gov.uk/id/local-authority/30UE,Capital,Capital,Early Intervention,Grants,03002,Capital Expenditure,Capital,ADDRESS REDACTED,18/04/2019,0137373,"3,580.00",Capital,Lancashire County Council,17758,,
Chorley Borough Council,http://statistics.data.gov.uk/id/local-authority/30UE,Capital,Capital,Early Intervention,Grants,03002,Capital Expenditure,Capital,ADDRESS REDACTED,18/04/2019,0137374,"2,502.00",Capital,Lancashire County Council,17758,,
Chorley Borough Council,http://statistics.data.gov.uk/id/local-authority/30UE,Capital,Capital,Early Intervention,Grants,03002,Capital Expenditure,Capital,ADDRESS REDACTED,18/04/2019,0137375,"3,549.08",Capital,Lancashire County Council,17758,,
Chorley Borough Council,http://statistics.data.gov.uk/id/local-authority/30UE,Corporate Management,1008,Customer & Digital,Clinical Waste Collection,50007,Private Contractors,5042,"Disposal of clinical waste from Chorley household. April 2018 to March 2019. Yellow bag collections, approx. 500 per month.",10/04/2019,0137027,670.89,Revenue,Lancashire Teaching Hospitals NHS FT,19003,,
Chorley Borough Council,http://statistics.data.gov.uk/id/local-authority/30UE,Corporate Management,1008,Customer & Digital,Clinical Waste Collection,50007,Private Contractors,5042,"Disposal of clinical waste from Chorley household. April 2018 to March 2019. Yellow bag collections, approx. 500 per month.",10/04/2019,0137028,756.58,Revenue,Lancashire Teaching Hospitals NHS FT,19003,,
Chorley Borough Council,http://statistics.data.gov.uk/id/local-authority/30UE,Private Sector HSG Renewal,1073,Early Intervention,External Contractor,40198,Miscellaneous Expenses,5034,Provision of Energy Switching Support Service (funded via LCC IHIS scheme) during February 2019,05/04/2019,0136869,445.68,Revenue,Lancashire West Citizens Advice Bureaux,17035,,
Chorley Borough Council,http://statistics.data.gov.uk/id/local-authority/30UE,Central Support Services,1009,Early Intervention,Professional Fees,40063,Services,5027,Work undertaken on the taxation advice for the wholly-owned company.,26/04/2019,0137426,"5,000.00",Revenue,LAVAT Consulting Ltd,76942,,
Chorley Borough Council,http://statistics.data.gov.uk/id/local-authority/30UE,Central Support Services,1009,Early Intervention,Professional Fees,40063,Services,5027,"Tax Advice - Charge for the VAT and SDLT advice (2,340 and 950) plus VAT",26/04/2019,0137442,"3,290.00",Revenue,LAVAT Consulting Ltd,76942,,
Chorley Borough Council,http://statistics.data.gov.uk/id/local-authority/30UE,Corporate Management,1008,Policy & Governance,Car Leasing Payment,14100,Direct Employee Expenses,5001,ADDRESS REDACTED,26/04/2019,0137413,280.86,Revenue,LeasePlan UK Ltd T/A Automotive Leasing,65197,,
Chorley Borough Council,http://statistics.data.gov.uk/id/local-authority/30UE,Corporate Management,1008,Policy & Governance,Car Leasing Payment,14100,Direct Employee Expenses,5001,vat,26/04/2019,0137413,25.01,Revenue,LeasePlan UK Ltd T/A Automotive Leasing,65197,,
Chorley Borough Council,http://statistics.data.gov.uk/id/local-authority/30UE,Control Accounts,Control,Policy & Governance,Manual Control Account,00001,Balance Sheet,Balance,,26/04/2019,0137413,-25.01,Revenue,LeasePlan UK Ltd T/A Automotive Leasing,65197,,
Chorley Borough Council,http://statistics.data.gov.uk/id/local-authority/30UE,Unapportionable Central OHeads,1009,Policy & Governance,Car Leasing Payment,14100,Direct Employee Expenses,5001,,10/04/2019,0136956,292.95,Revenue,Lex Autolease Ltd,70682,,
Chorley Borough Council,http://statistics.data.gov.uk/id/local-authority/30UE,Unapportionable Central OHeads,1009,Policy & Governance,Car Leasing Payment,14100,Direct Employee Expenses,5001,,10/04/2019,0136956,29.30,Revenue,Lex Autolease Ltd,70682,,
Chorley Borough Council,http://statistics.data.gov.uk/id/local-authority/30UE,Control Accounts,Control,Policy & Governance,Manual Control Account,00001,Balance Sheet,Balance,,10/04/2019,0136956,-29.30,Revenue,Lex Autolease Ltd,70682,,
Chorley Borough Council,http://statistics.data.gov.uk/id/local-authority/30UE,Central Support Services,1009,Policy & Governance,Car Leasing Payment,14100,Direct Employee Expenses,5001,Car Lease,10/04/2019,0136957,"2,881.92",Revenue,Lex Autolease Ltd,70682,,
Chorley Borough Council,http://statistics.data.gov.uk/id/local-authority/30UE,Central Support Services,1009,Policy & Governance,Car Leasing Payment,14100,Direct Employee Expenses,5001,vat,10/04/2019,0136957,235.39,Revenue,Lex Autolease Ltd,70682,,
Chorley Borough Council,http://statistics.data.gov.uk/id/local-authority/30UE,Control Accounts,Control,Policy & Governance,Manual Control Account,00001,Balance Sheet,Balance,vat,10/04/2019,0136957,-235.39,Revenue,Lex Autolease Ltd,70682,,
Chorley Borough Council,http://statistics.data.gov.uk/id/local-authority/30UE,Democratic Represent and  Mgnt,1007,Policy & Governance,Exhibitions,40176,Miscellaneous Expenses,5034,4xStas hanger; 8xStas cobra perlon suspender 2.5m 10pk; 10xStas zipper adjustable hook 10pk; keyhole plate 32mm brass,24/04/2019,0137221,583.00,Revenue,Lion Picture Framing Supplies Ltd,21731,,
Chorley Borough Council,http://statistics.data.gov.uk/id/local-authority/30UE,Democratic Represent and  Mgnt,1007,Chief Executive,General Subscriptions,40146,Grants and Subscriptions,5031,LGA Subscription 2019/2020,24/04/2019,0137336,"11,000.00",Revenue,Local Government Association,16243,,
Chorley Borough Council,http://statistics.data.gov.uk/id/local-authority/30UE,Democratic Represent and  Mgnt,1007,Chief Executive,General Subscriptions,40146,Grants and Subscriptions,5031,early pymt,24/04/2019,0137336,-275.00,Revenue,Local Government Association,16243,,
Chorley Borough Council,http://statistics.data.gov.uk/id/local-authority/30UE,Democratic Represent and  Mgnt,1007,Chief Executive,General Subscriptions,40146,Grants and Subscriptions,5031,loyalty disc,24/04/2019,0137336,-275.00,Revenue,Local Government Association,16243,,
Chorley Borough Council,http://statistics.data.gov.uk/id/local-authority/30UE,Corporate Management,1008,Policy & Governance,Exhibitions & Special Events,40158,Miscellaneous Expenses,5034,Performance in Market Walk Thursday 11 April and Thursday 18 April,24/04/2019,0137421,"1,000.00",Revenue,Louby Lou Ltd,76335,,
Chorley Borough Council,http://statistics.data.gov.uk/id/local-authority/30UE,Unapportionable Central OHeads,1009,Policy & Governance,Stationery,40050,"Printing, Stationery & General",5026,Desk Tidy,12/04/2019,0136194,1.50,Revenue,Lyreco UK Ltd,17623,,
Chorley Borough Council,http://statistics.data.gov.uk/id/local-authority/30UE,Unapportionable Central OHeads,1009,Policy & Governance,Stationery,40050,"Printing, Stationery & General",5026,Lyreco magazine rack,12/04/2019,0136194,6.00,Revenue,Lyreco UK Ltd,17623,,
Chorley Borough Council,http://statistics.data.gov.uk/id/local-authority/30UE,Unapportionable Central OHeads,1009,Policy & Governance,Stationery,40050,"Printing, Stationery & General",5026,LYRECO WHITE C5 SELF SEAL WINDOW ENVELOPES 90GSM - BOX OF 500,12/04/2019,0136194,25.86,Revenue,Lyreco UK Ltd,17623,,
Chorley Borough Council,http://statistics.data.gov.uk/id/local-authority/30UE,Unapportionable Central OHeads,1009,Policy & Governance,Stationery,40050,"Printing, Stationery & General",5026,EUROPA JAN - DEC PRINTED DIVIDERS A4,12/04/2019,0136194,18.95,Revenue,Lyreco UK Ltd,17623,,
Chorley Borough Council,http://statistics.data.gov.uk/id/local-authority/30UE,Unapportionable Central OHeads,1009,Policy & Governance,Stationery,40050,"Printing, Stationery & General",5026,EUROPA JAN - DEC PRINTED DIVIDERS A4,12/04/2019,0136194,3.79,Revenue,Lyreco UK Ltd,17623,,
Chorley Borough Council,http://statistics.data.gov.uk/id/local-authority/30UE,Unapportionable Central OHeads,1009,Policy & Governance,Stationery,40050,"Printing, Stationery & General",5026, A4 Multi-Punched Plastic Pockets 80 Microns - Pack Of 100,12/04/2019,0136194,20.72,Revenue,Lyreco UK Ltd,17623,,
Chorley Borough Council,http://statistics.data.gov.uk/id/local-authority/30UE,Unapportionable Central OHeads,1009,Policy & Governance,Stationery,40050,"Printing, Stationery & General",5026,BX100 LYRECO LAM POUCH 2X125MI A4 GLOSS,12/04/2019,0136194,7.96,Revenue,Lyreco UK Ltd,17623,,
Chorley Borough Council,http://statistics.data.gov.uk/id/local-authority/30UE,Unapportionable Central OHeads,1009,Policy & Governance,Stationery,40050,"Printing, Stationery & General",5026,BX100 LYRECO LAM POUCH 2X75MI A4 GLOSS,12/04/2019,0136194,2.38,Revenue,Lyreco UK Ltd,17623,,
Chorley Borough Council,http://statistics.data.gov.uk/id/local-authority/30UE,Unapportionable Central OHeads,1009,Policy & Governance,Stationery,40050,"Printing, Stationery & General",5026,"LYRECO DOC WLLT F/CAP/FOLIO 250G  KRAFT BOX OF 50",12/04/2019,0136194,4.00,Revenue,Lyreco UK Ltd,17623,,
Chorley Borough Council,http://statistics.data.gov.uk/id/local-authority/30UE,Unapportionable Central OHeads,1009,Policy & Governance,Stationery,40050,"Printing, Stationery & General",5026,Elba Spring Pocket Files - Green,12/04/2019,0136194,21.25,Revenue,Lyreco UK Ltd,17623,,
Chorley Borough Council,http://statistics.data.gov.uk/id/local-authority/30UE,Unapportionable Central OHeads,1009,Policy & Governance,Stationery,40050,"Printing, Stationery & General",5026,Lyreco  White Dl Self Seal Plain Envelopes 90Gsm - Box Of 500,12/04/2019,0136194,25.31,Revenue,Lyreco UK Ltd,17623,,
Chorley Borough Council,http://statistics.data.gov.uk/id/local-authority/30UE,Unapportionable Central OHeads,1009,Policy & Governance,Stationery,40050,"Printing, Stationery & General",5026,TESA 4662 CLOTH TAPE 48MMX50M SILV,12/04/2019,0136194,3.13,Revenue,Lyreco UK Ltd,17623,,
Chorley Borough Council,http://statistics.data.gov.uk/id/local-authority/30UE,Unapportionable Central OHeads,1009,Policy & Governance,Stationery,40050,"Printing, Stationery & General",5026,TESA 4662 CLOTH TAPE 48MMX50M BLK,12/04/2019,0136194,10.91,Revenue,Lyreco UK Ltd,17623,,
Chorley Borough Council,http://statistics.data.gov.uk/id/local-authority/30UE,Unapportionable Central OHeads,1009,Policy & Governance,Stationery,40050,"Printing, Stationery & General",5026,LYRECO CREPE MASKING TAPE 25MMX50M,12/04/2019,0136194,1.75,Revenue,Lyreco UK Ltd,17623,,
Chorley Borough Council,http://statistics.data.gov.uk/id/local-authority/30UE,Unapportionable Central OHeads,1009,Policy & Governance,Stationery,40050,"Printing, Stationery & General",5026,UHU 43511 ECONOMY WHITE TACK,12/04/2019,0136194,5.30,Revenue,Lyreco UK Ltd,17623,,
Chorley Borough Council,http://statistics.data.gov.uk/id/local-authority/30UE,Unapportionable Central OHeads,1009,Policy & Governance,Stationery,40050,"Printing, Stationery & General",5026,LYRECO assorted colour budget highlighters - pack of 6,12/04/2019,0136194,3.37,Revenue,Lyreco UK Ltd,17623,,
Chorley Borough Council,http://statistics.data.gov.uk/id/local-authority/30UE,Unapportionable Central OHeads,1009,Policy & Governance,Stationery,40050,"Printing, Stationery & General",5026,Lyreco Bullet Tip Assorted Colour Flipchart Markers - Wallet Of 4,12/04/2019,0136194,0.80,Revenue,Lyreco UK Ltd,17623,,
Chorley Borough Council,http://statistics.data.gov.uk/id/local-authority/30UE,Unapportionable Central OHeads,1009,Policy & Governance,Stationery,40050,"Printing, Stationery & General",5026,Lyreco A1 Flipchart Pads - Pack Of 5 (5 X 40 Sheets),12/04/2019,0136194,4.65,Revenue,Lyreco UK Ltd,17623,,
Chorley Borough Council,http://statistics.data.gov.uk/id/local-authority/30UE,Unapportionable Central OHeads,1009,Policy & Governance,Stationery,40050,"Printing, Stationery & General",5026,HP Black Ink Cartridge 953,12/04/2019,0136194,24.26,Revenue,Lyreco UK Ltd,17623,,
Chorley Borough Council,http://statistics.data.gov.uk/id/local-authority/30UE,Unapportionable Central OHeads,1009,Policy & Governance,Stationery,40050,"Printing, Stationery & General",5026,HP Blue Ink Cartridge 953,12/04/2019,0136194,17.77,Revenue,Lyreco UK Ltd,17623,,
Chorley Borough Council,http://statistics.data.gov.uk/id/local-authority/30UE,Unapportionable Central OHeads,1009,Policy & Governance,Stationery,40050,"Printing, Stationery & General",5026,HP Yellow Ink Cartridge 953,12/04/2019,0136194,17.77,Revenue,Lyreco UK Ltd,17623,,
Chorley Borough Council,http://statistics.data.gov.uk/id/local-authority/30UE,Unapportionable Central OHeads,1009,Policy & Governance,Stationery,40050,"Printing, Stationery & General",5026,Lyreco multi colour A4 Mylar 10 part dividers pack of 5,12/04/2019,0136194,4.44,Revenue,Lyreco UK Ltd,17623,,
Chorley Borough Council,http://statistics.data.gov.uk/id/local-authority/30UE,Unapportionable Central OHeads,1009,Policy & Governance,Miscellaneous Expenses,40200,Miscellaneous Expenses,5034,Stabilo Swing Cool Assorted Colour Highlighters - Wallet Of 6,12/04/2019,0136194,7.43,Revenue,Lyreco UK Ltd,17623,,
Chorley Borough Council,http://statistics.data.gov.uk/id/local-authority/30UE,Unapportionable Central OHeads,1009,Policy & Governance,Stationery,40050,"Printing, Stationery & General",5026,`Things to do Today` book,12/04/2019,0136194,4.65,Revenue,Lyreco UK Ltd,17623,,
Chorley Borough Council,http://statistics.data.gov.uk/id/local-authority/30UE,Unapportionable Central OHeads,1009,Policy & Governance,Stationery,40050,"Printing, Stationery & General",5026,BIC CRISTAL MEDIUM BALL POINT PEN BLACK - BOX OF 90 PLUS 10 FREE PENS,12/04/2019,0136194,20.85,Revenue,Lyreco UK Ltd,17623,,
Chorley Borough Council,http://statistics.data.gov.uk/id/local-authority/30UE,Unapportionable Central OHeads,1009,Policy & Governance,Stationery,40050,"Printing, Stationery & General",5026,Bic Cristal Ball Point Blue Pens 0.7Mm Line Width - Box Of 50,12/04/2019,0136194,12.17,Revenue,Lyreco UK Ltd,17623,,
Chorley Borough Council,http://statistics.data.gov.uk/id/local-authority/30UE,Unapportionable Central OHeads,1009,Policy & Governance,Stationery,40050,"Printing, Stationery & General",5026,"3.110.545 LYRECO HARD BACK TWIN WIRE NOTEBK A4 	 - PACK OF 5",12/04/2019,0136194,3.95,Revenue,Lyreco UK Ltd,17623,,
Chorley Borough Council,http://statistics.data.gov.uk/id/local-authority/30UE,Unapportionable Central OHeads,1009,Policy & Governance,Stationery,40050,"Printing, Stationery & General",5026,Lyreco  Hard Back Twin Wire Notebook A5 - Pack Of 5,12/04/2019,0136194,3.00,Revenue,Lyreco UK Ltd,17623,,
Chorley Borough Council,http://statistics.data.gov.uk/id/local-authority/30UE,Unapportionable Central OHeads,1009,Policy & Governance,Stationery,40050,"Printing, Stationery & General",5026,LYRECO OFFICE DESKTOP CALC 10 DIGIT,12/04/2019,0136194,2.04,Revenue,Lyreco UK Ltd,17623,,
Chorley Borough Council,http://statistics.data.gov.uk/id/local-authority/30UE,Unapportionable Central OHeads,1009,Policy & Governance,Stationery,40050,"Printing, Stationery & General",5026,LYRECO HB ERASER TIPPED PENCILS - BOX OF 12,12/04/2019,0136194,0.72,Revenue,Lyreco UK Ltd,17623,,
Chorley Borough Council,http://statistics.data.gov.uk/id/local-authority/30UE,Unapportionable Central OHeads,1009,Policy & Governance,Stationery,40050,"Printing, Stationery & General",5026,BX2400 LYRECO M/PURPOSE LABELS 70X37,12/04/2019,0136194,8.44,Revenue,Lyreco UK Ltd,17623,,
Chorley Borough Council,http://statistics.data.gov.uk/id/local-authority/30UE,Unapportionable Central OHeads,1009,Policy & Governance,Stationery,40050,"Printing, Stationery & General",5026,Durable Place Name Holders 216 X 61Mm - Pack Of 25,12/04/2019,0136194,72.25,Revenue,Lyreco UK Ltd,17623,,
Chorley Borough Council,http://statistics.data.gov.uk/id/local-authority/30UE,Unapportionable Central OHeads,1009,Policy & Governance,Stationery,40050,"Printing, Stationery & General",5026,Adhesive Gridding Tape 1.5Mm X 10M - Black,12/04/2019,0136194,12.19,Revenue,Lyreco UK Ltd,17623,,
Chorley Borough Council,http://statistics.data.gov.uk/id/local-authority/30UE,Unapportionable Central OHeads,1009,Policy & Governance,Stationery,40050,"Printing, Stationery & General",5026,LYRECO A3 GLOSS LAMINATING POUCH,12/04/2019,0136194,42.71,Revenue,Lyreco UK Ltd,17623,,
Chorley Borough Council,http://statistics.data.gov.uk/id/local-authority/30UE,Service Management & Support,1009,Customer & Digital,Grounds Maintenance Contractor,20043,Grounds Maintenance Costs,5013,invoice 41. Tree works 01-03-19 to 29-03-19,17/04/2019,0136772,"1,910.00",Revenue,M J Walker,62044,,
Chorley Borough Council,http://statistics.data.gov.uk/id/local-authority/30UE,Service Management & Support,1009,Customer & Digital,Grounds Maintenance Contractor,20043,Grounds Maintenance Costs,5013,tree works invoice 40 - Feb 2019,03/04/2019,0136943,"1,920.00",Revenue,M J Walker,62044,,
Chorley Borough Council,http://statistics.data.gov.uk/id/local-authority/30UE,Capital,Capital,Early Intervention,Grants,03002,Capital Expenditure,Capital,ADDRESS REDACTED,18/04/2019,0137372,"3,480.00",Capital,M.J Park Building Contractors,20367,,
Chorley Borough Council,http://statistics.data.gov.uk/id/local-authority/30UE,Capital,Capital,Early Intervention,Grants,03002,Capital Expenditure,Capital,ADDRESS REDACTED,18/04/2019,0137392,"3,565.00",Capital,M.J Park Building Contractors,20367,,
Chorley Borough Council,http://statistics.data.gov.uk/id/local-authority/30UE,Capital,Capital,Early Intervention,Grants,03002,Capital Expenditure,Capital,ADDRESS REDACTED,18/04/2019,0137393,"3,982.50",Capital,M.J Park Building Contractors,20367,,
Chorley Borough Council,http://statistics.data.gov.uk/id/local-authority/30UE,Building Control,1090,Customer & Digital,Agency Staff,13000,Direct Employee Expenses,5001,Agency fees for Adam Harris (Building Control) 07.01.2019 - 29.03.2019,10/04/2019,0136202,"1,377.50",Revenue,Matchtech,77343,,
Chorley Borough Council,http://statistics.data.gov.uk/id/local-authority/30UE,Building Control,1090,Customer & Digital,Agency Staff,13000,Direct Employee Expenses,5001,Agency fees for Adam Harris (Building Control) 07.01.2019 - 29.03.2019,10/04/2019,0136833,"1,102.00",Revenue,Matchtech,77343,,
Chorley Borough Council,http://statistics.data.gov.uk/id/local-authority/30UE,Unapportionable Central OHeads,1009,Policy & Governance,Agency Staff,13000,Direct Employee Expenses,5001,Services Procurement,10/04/2019,0137053,"1,939.98",Revenue,Matrix SCM Ltd,22128,,
Chorley Borough Council,http://statistics.data.gov.uk/id/local-authority/30UE,Unapportionable Central OHeads,1009,Policy & Governance,Agency Staff,13000,Direct Employee Expenses,5001,Services Procurement,24/04/2019,0137213,"1,120.09",Revenue,Matrix SCM Ltd,22128,,
Chorley Borough Council,http://statistics.data.gov.uk/id/local-authority/30UE,Unapportionable Central OHeads,1009,Policy & Governance,Agency Staff,13000,Direct Employee Expenses,5001,NAME REDACTED,24/04/2019,0137394,307.79,Revenue,Matrix SCM Ltd,22128,,
Chorley Borough Council,http://statistics.data.gov.uk/id/local-authority/30UE,Unapportionable Central OHeads,1009,Policy & Governance,Agency Staff,13000,Direct Employee Expenses,5001,NAME REDACTED,24/04/2019,0137394,494.68,Revenue,Matrix SCM Ltd,22128,,
Chorley Borough Council,http://statistics.data.gov.uk/id/local-authority/30UE,Corporate Management,1008,Customer & Digital,Contributions Parish Councils,40144,Grants and Subscriptions,5031,NAME REDACTED,03/04/2019,0136941,794.00,Revenue,Mawdesley Parish Council,17570,,
Chorley Borough Council,http://statistics.data.gov.uk/id/local-authority/30UE,Payments of Precepts to Parish,1018,Customer & Digital,Parish Council Tax,04500,Revenue Account Transfers,Balance,precepts/parish council,03/04/2019,0136941,"30,710.00",Revenue,Mawdesley Parish Council,17570,,
Chorley Borough Council,http://statistics.data.gov.uk/id/local-authority/30UE,Recognised Cap Grants & Conts,,Business Development & Growth,Contributions Parish Councils,40144,Grants and Subscriptions,5031,cil receipt,12/04/2019,0137124,"2,021.95",Revenue,Mawdesley Parish Council,17570,,
Chorley Borough Council,http://statistics.data.gov.uk/id/local-authority/30UE,Unapportionable Central OHeads,1009,Business Development & Growth,Planned Maintenance,20006,Repairs Maintenance & Alts,5005,Annual Purchase order for water monitoring,12/04/2019,0137153,621.24,Revenue,Maxigiene Environmental Services Ltd,67160,,
Chorley Borough Council,http://statistics.data.gov.uk/id/local-authority/30UE,Capital,Capital,Customer & Digital,Other Expenses,03030,Capital Expenditure,Capital,20 to of Grade 1 top soil,03/04/2019,0136905,400.00,Capital,Mc & Ma Stewart (Haulage Ltd),16627,,
Chorley Borough Council,http://statistics.data.gov.uk/id/local-authority/30UE,Capital,Capital,Business Development & Growth,Other Capital Related Fees,03024,Capital Expenditure,Capital,"40 tonne Ultitrec for Gillibrand Walks, Chorley",12/04/2019,0137067,917.56,Capital,Mc & Ma Stewart (Haulage Ltd),16627,,
Chorley Borough Council,http://statistics.data.gov.uk/id/local-authority/30UE,Democratic Represent and  Mgnt,1007,Business Development & Growth,Maintenance/Nature Reserves,20045,Grounds Maintenance Costs,5013,"Limestone 40mm-dust  40 tonne and Ultitrec 40 tonne for path at Yarrow Mdws  Del. to Yarrow Valley Way, adj Burgh Wood Way",10/04/2019,0137068,"1,592.00",Revenue,Mc & Ma Stewart (Haulage Ltd),16627,,
Chorley Borough Council,http://statistics.data.gov.uk/id/local-authority/30UE,Democratic Represent and  Mgnt,1007,Business Development & Growth,Maintenance/Nature Reserves,20045,Grounds Maintenance Costs,5013,40 tonne of Ultitrec for Blainscough Wood Nature Reserve,10/04/2019,0137069,932.00,Revenue,Mc & Ma Stewart (Haulage Ltd),16627,,
Chorley Borough Council,http://statistics.data.gov.uk/id/local-authority/30UE,Democratic Represent and  Mgnt,1007,Policy & Governance,Conservation Of Exhibits,40059,Services,5027,"Annual Meaco Radio Warranty Service Plan from 1/5/2019 835.00 Humidifier Service 255 = 1308 (incl. vat)",24/04/2019,0137214,"1,090.00",Revenue,Meaco Measurement & Control Ltd,16527,,
Chorley Borough Council,http://statistics.data.gov.uk/id/local-authority/30UE,Homelessness,1075,Policy & Governance,Car Leasing Payment,14100,Direct Employee Expenses,5001,"Car Lease 4715975 Skoda Karoq, 1.5 TSI SE 5dr , Front & Rear parking sensors, rear view camera, 3 years, 6000 miles/year",10/04/2019,0137109,"2,977.15",Revenue,Mercedes Benz UK Ltd T/A Daimler Fleet Management,77684,,
Chorley Borough Council,http://statistics.data.gov.uk/id/local-authority/30UE,Service Management & Support,1009,Customer & Digital,Supplies-Grounds Maintenance,40025,"Equipment, Furniture & Materia",5023,24 x Universal H Padlock @7.82each,17/04/2019,0137282,187.68,Revenue,Mercer & Sons Ltd,17876,,
Chorley Borough Council,http://statistics.data.gov.uk/id/local-authority/30UE,Service Management & Support,1009,Customer & Digital,Supplies-Grounds Maintenance,40025,"Equipment, Furniture & Materia",5023,24 x Universal N Padlock @7.82each,17/04/2019,0137282,187.68,Revenue,Mercer & Sons Ltd,17876,,
Chorley Borough Council,http://statistics.data.gov.uk/id/local-authority/30UE,Capital,Capital,Customer & Digital,Equipment,03014,Capital Expenditure,Capital,Lids for 240 litre wheel bin. Colour = Green    Quantity= 200    L240-02,17/04/2019,0137000,990.00,Capital,MGB Plastics Ltd,18624,,
Chorley Borough Council,http://statistics.data.gov.uk/id/local-authority/30UE,Capital,Capital,Early Intervention,Grants,03002,Capital Expenditure,Capital,ADDRESS REDACTED,18/04/2019,0137257,"3,777.70",Capital,Mint Northwest Ltd,65607,,
Chorley Borough Council,http://statistics.data.gov.uk/id/local-authority/30UE,Capital,Capital,Early Intervention,Grants,03002,Capital Expenditure,Capital,ADDRESS REDACTED,18/04/2019,0137258,"3,690.42",Capital,Mint Northwest Ltd,65607,,
Chorley Borough Council,http://statistics.data.gov.uk/id/local-authority/30UE,Capital,Capital,Early Intervention,Grants,03002,Capital Expenditure,Capital,ADDRESS REDACTED,18/04/2019,0137391,"4,312.88",Capital,Mint Northwest Ltd,65607,,
Chorley Borough Council,http://statistics.data.gov.uk/id/local-authority/30UE,Capital,Capital,Early Intervention,Grants,03002,Capital Expenditure,Capital,ADDRESS REDACTED,26/04/2019,0137400,"13,450.07",Capital,Mint Northwest Ltd,65607,,
Chorley Borough Council,http://statistics.data.gov.uk/id/local-authority/30UE,Capital,Capital,Early Intervention,Grants,03002,Capital Expenditure,Capital,ADDRESS REDACTED,26/04/2019,0137401,"4,642.25",Capital,Mint Northwest Ltd,65607,,
Chorley Borough Council,http://statistics.data.gov.uk/id/local-authority/30UE,Capital,Capital,Early Intervention,Grants,03002,Capital Expenditure,Capital,ADDRESS REDACTED,26/04/2019,0137402,"3,748.34",Capital,Mint Northwest Ltd,65607,,
Chorley Borough Council,http://statistics.data.gov.uk/id/local-authority/30UE,Capital,Capital,Early Intervention,Grants,03002,Capital Expenditure,Capital,ADDRESS REDACTED,26/04/2019,0137478,"3,813.22",Capital,Mint Northwest Ltd,65607,,
Chorley Borough Council,http://statistics.data.gov.uk/id/local-authority/30UE,Capital,Capital,Early Intervention,Grants,03002,Capital Expenditure,Capital,ADDRESS REDACTED,26/04/2019,0137479,"11,637.73",Capital,Mint Northwest Ltd,65607,,
Chorley Borough Council,http://statistics.data.gov.uk/id/local-authority/30UE,Capital,Capital,Early Intervention,Grants,03002,Capital Expenditure,Capital,NAME REDACTED,26/04/2019,0137480,"1,420.67",Capital,Mint Northwest Ltd,65607,,
Chorley Borough Council,http://statistics.data.gov.uk/id/local-authority/30UE,Private Sector HSG Renewal,1073,Early Intervention,External Contractor,40198,Miscellaneous Expenses,5034,Ref 1557,10/04/2019,0137056,160.00,Revenue,Mobility Care Services,70841,,
Chorley Borough Council,http://statistics.data.gov.uk/id/local-authority/30UE,Private Sector HSG Renewal,1073,Early Intervention,External Contractor,40198,Miscellaneous Expenses,5034,Ref 1853,10/04/2019,0137056,128.00,Revenue,Mobility Care Services,70841,,
Chorley Borough Council,http://statistics.data.gov.uk/id/local-authority/30UE,Private Sector HSG Renewal,1073,Early Intervention,External Contractor,40198,Miscellaneous Expenses,5034,Ref 1854,10/04/2019,0137056,420.00,Revenue,Mobility Care Services,70841,,
Chorley Borough Council,http://statistics.data.gov.uk/id/local-authority/30UE,Private Sector HSG Renewal,1073,Early Intervention,External Contractor,40198,Miscellaneous Expenses,5034,Ref 1771,10/04/2019,0137056,132.00,Revenue,Mobility Care Services,70841,,
Chorley Borough Council,http://statistics.data.gov.uk/id/local-authority/30UE,Private Sector HSG Renewal,1073,Early Intervention,External Contractor,40198,Miscellaneous Expenses,5034,Ref 1783,10/04/2019,0137056,66.00,Revenue,Mobility Care Services,70841,,
Chorley Borough Council,http://statistics.data.gov.uk/id/local-authority/30UE,Private Sector HSG Renewal,1073,Early Intervention,External Contractor,40198,Miscellaneous Expenses,5034,Ref 1789,10/04/2019,0137056,198.00,Revenue,Mobility Care Services,70841,,
Chorley Borough Council,http://statistics.data.gov.uk/id/local-authority/30UE,Private Sector HSG Renewal,1073,Early Intervention,External Contractor,40198,Miscellaneous Expenses,5034,Ref 1790,10/04/2019,0137056,66.00,Revenue,Mobility Care Services,70841,,
Chorley Borough Council,http://statistics.data.gov.uk/id/local-authority/30UE,Private Sector HSG Renewal,1073,Early Intervention,External Contractor,40198,Miscellaneous Expenses,5034,Ref 1795,10/04/2019,0137056,60.00,Revenue,Mobility Care Services,70841,,
Chorley Borough Council,http://statistics.data.gov.uk/id/local-authority/30UE,Private Sector HSG Renewal,1073,Early Intervention,External Contractor,40198,Miscellaneous Expenses,5034,Ref 1798,10/04/2019,0137056,140.00,Revenue,Mobility Care Services,70841,,
Chorley Borough Council,http://statistics.data.gov.uk/id/local-authority/30UE,Private Sector HSG Renewal,1073,Early Intervention,External Contractor,40198,Miscellaneous Expenses,5034,Ref 1799,10/04/2019,0137056,111.00,Revenue,Mobility Care Services,70841,,
Chorley Borough Council,http://statistics.data.gov.uk/id/local-authority/30UE,Private Sector HSG Renewal,1073,Early Intervention,External Contractor,40198,Miscellaneous Expenses,5034,Ref 1800,10/04/2019,0137056,111.00,Revenue,Mobility Care Services,70841,,
Chorley Borough Council,http://statistics.data.gov.uk/id/local-authority/30UE,Private Sector HSG Renewal,1073,Early Intervention,External Contractor,40198,Miscellaneous Expenses,5034,Ref 1801,10/04/2019,0137056,66.00,Revenue,Mobility Care Services,70841,,
Chorley Borough Council,http://statistics.data.gov.uk/id/local-authority/30UE,Private Sector HSG Renewal,1073,Early Intervention,External Contractor,40198,Miscellaneous Expenses,5034,Ref 1814,10/04/2019,0137056,150.00,Revenue,Mobility Care Services,70841,,
Chorley Borough Council,http://statistics.data.gov.uk/id/local-authority/30UE,Private Sector HSG Renewal,1073,Early Intervention,External Contractor,40198,Miscellaneous Expenses,5034,Ref 1815,10/04/2019,0137056,111.00,Revenue,Mobility Care Services,70841,,
Chorley Borough Council,http://statistics.data.gov.uk/id/local-authority/30UE,Private Sector HSG Renewal,1073,Early Intervention,External Contractor,40198,Miscellaneous Expenses,5034,Ref 1822,10/04/2019,0137056,128.00,Revenue,Mobility Care Services,70841,,
Chorley Borough Council,http://statistics.data.gov.uk/id/local-authority/30UE,Private Sector HSG Renewal,1073,Early Intervention,External Contractor,40198,Miscellaneous Expenses,5034,Ref 1823,10/04/2019,0137056,111.00,Revenue,Mobility Care Services,70841,,
Chorley Borough Council,http://statistics.data.gov.uk/id/local-authority/30UE,Private Sector HSG Renewal,1073,Early Intervention,External Contractor,40198,Miscellaneous Expenses,5034,Ref 1816,10/04/2019,0137056,222.00,Revenue,Mobility Care Services,70841,,
Chorley Borough Council,http://statistics.data.gov.uk/id/local-authority/30UE,Private Sector HSG Renewal,1073,Early Intervention,External Contractor,40198,Miscellaneous Expenses,5034,Ref 1824,10/04/2019,0137056,128.00,Revenue,Mobility Care Services,70841,,
Chorley Borough Council,http://statistics.data.gov.uk/id/local-authority/30UE,Private Sector HSG Renewal,1073,Early Intervention,External Contractor,40198,Miscellaneous Expenses,5034,Ref 1825,10/04/2019,0137056,111.00,Revenue,Mobility Care Services,70841,,
Chorley Borough Council,http://statistics.data.gov.uk/id/local-authority/30UE,Private Sector HSG Renewal,1073,Early Intervention,External Contractor,40198,Miscellaneous Expenses,5034,Ref 1826,10/04/2019,0137056,111.00,Revenue,Mobility Care Services,70841,,
Chorley Borough Council,http://statistics.data.gov.uk/id/local-authority/30UE,Private Sector HSG Renewal,1073,Early Intervention,External Contractor,40198,Miscellaneous Expenses,5034,Ref 1827,10/04/2019,0137056,256.00,Revenue,Mobility Care Services,70841,,
Chorley Borough Council,http://statistics.data.gov.uk/id/local-authority/30UE,Private Sector HSG Renewal,1073,Early Intervention,External Contractor,40198,Miscellaneous Expenses,5034,Ref 1829,10/04/2019,0137056,256.00,Revenue,Mobility Care Services,70841,,
Chorley Borough Council,http://statistics.data.gov.uk/id/local-authority/30UE,Private Sector HSG Renewal,1073,Early Intervention,External Contractor,40198,Miscellaneous Expenses,5034,Ref 1830,10/04/2019,0137056,256.00,Revenue,Mobility Care Services,70841,,
Chorley Borough Council,http://statistics.data.gov.uk/id/local-authority/30UE,Private Sector HSG Renewal,1073,Early Intervention,External Contractor,40198,Miscellaneous Expenses,5034,Ref 1828,10/04/2019,0137056,66.00,Revenue,Mobility Care Services,70841,,
Chorley Borough Council,http://statistics.data.gov.uk/id/local-authority/30UE,Private Sector HSG Renewal,1073,Early Intervention,External Contractor,40198,Miscellaneous Expenses,5034,Ref 1831,10/04/2019,0137056,66.00,Revenue,Mobility Care Services,70841,,
Chorley Borough Council,http://statistics.data.gov.uk/id/local-authority/30UE,Private Sector HSG Renewal,1073,Early Intervention,External Contractor,40198,Miscellaneous Expenses,5034,Ref 1721,10/04/2019,0137056,256.00,Revenue,Mobility Care Services,70841,,
Chorley Borough Council,http://statistics.data.gov.uk/id/local-authority/30UE,Private Sector HSG Renewal,1073,Early Intervention,External Contractor,40198,Miscellaneous Expenses,5034,Ref 1541,10/04/2019,0137056,680.00,Revenue,Mobility Care Services,70841,,
Chorley Borough Council,http://statistics.data.gov.uk/id/local-authority/30UE,Private Sector HSG Renewal,1073,Early Intervention,External Contractor,40198,Miscellaneous Expenses,5034,Ref 1540,10/04/2019,0137056,480.00,Revenue,Mobility Care Services,70841,,
Chorley Borough Council,http://statistics.data.gov.uk/id/local-authority/30UE,Private Sector HSG Renewal,1073,Early Intervention,External Contractor,40198,Miscellaneous Expenses,5034,Ref 1556,10/04/2019,0137056,140.00,Revenue,Mobility Care Services,70841,,
Chorley Borough Council,http://statistics.data.gov.uk/id/local-authority/30UE,Private Sector HSG Renewal,1073,Early Intervention,External Contractor,40198,Miscellaneous Expenses,5034,Ref 1539,10/04/2019,0137056,140.00,Revenue,Mobility Care Services,70841,,
Chorley Borough Council,http://statistics.data.gov.uk/id/local-authority/30UE,Private Sector HSG Renewal,1073,Early Intervention,External Contractor,40198,Miscellaneous Expenses,5034,Ref 1538,10/04/2019,0137056,66.00,Revenue,Mobility Care Services,70841,,
Chorley Borough Council,http://statistics.data.gov.uk/id/local-authority/30UE,Private Sector HSG Renewal,1073,Early Intervention,External Contractor,40198,Miscellaneous Expenses,5034,Ref 1845,10/04/2019,0137056,980.00,Revenue,Mobility Care Services,70841,,
Chorley Borough Council,http://statistics.data.gov.uk/id/local-authority/30UE,Private Sector HSG Renewal,1073,Early Intervention,External Contractor,40198,Miscellaneous Expenses,5034,Ref 1846,10/04/2019,0137056,660.00,Revenue,Mobility Care Services,70841,,
Chorley Borough Council,http://statistics.data.gov.uk/id/local-authority/30UE,Private Sector HSG Renewal,1073,Early Intervention,External Contractor,40198,Miscellaneous Expenses,5034,Ref 1847,10/04/2019,0137056,111.00,Revenue,Mobility Care Services,70841,,
Chorley Borough Council,http://statistics.data.gov.uk/id/local-authority/30UE,Private Sector HSG Renewal,1073,Early Intervention,External Contractor,40198,Miscellaneous Expenses,5034,Ref 1864,10/04/2019,0137056,420.00,Revenue,Mobility Care Services,70841,,
Chorley Borough Council,http://statistics.data.gov.uk/id/local-authority/30UE,Private Sector HSG Renewal,1073,Early Intervention,External Contractor,40198,Miscellaneous Expenses,5034,Ref 1866,10/04/2019,0137056,140.00,Revenue,Mobility Care Services,70841,,
Chorley Borough Council,http://statistics.data.gov.uk/id/local-authority/30UE,Private Sector HSG Renewal,1073,Early Intervention,External Contractor,40198,Miscellaneous Expenses,5034,Ref 1865,10/04/2019,0137056,140.00,Revenue,Mobility Care Services,70841,,
Chorley Borough Council,http://statistics.data.gov.uk/id/local-authority/30UE,Private Sector HSG Renewal,1073,Early Intervention,External Contractor,40198,Miscellaneous Expenses,5034,Ref 1681,10/04/2019,0137056,128.00,Revenue,Mobility Care Services,70841,,
Chorley Borough Council,http://statistics.data.gov.uk/id/local-authority/30UE,Private Sector HSG Renewal,1073,Early Intervention,External Contractor,40198,Miscellaneous Expenses,5034,Ref 1794,10/04/2019,0137056,120.00,Revenue,Mobility Care Services,70841,,
Chorley Borough Council,http://statistics.data.gov.uk/id/local-authority/30UE,Unapportionable Central OHeads,1009,Policy & Governance,Other Licence Fees,40231,Miscellaneous Expenses,5034,Invoice number 481227 Umbrella Licence for Chorley Council Motion Picture Licence Company 11th June 2019 to 11th June 2020,17/04/2019,0137242,"3,363.75",Revenue,Motion Picture Licensing Company Limited,65600,,
Chorley Borough Council,http://statistics.data.gov.uk/id/local-authority/30UE,Tourism,1039,Policy & Governance,Publicity - Advertising,40157,Miscellaneous Expenses,5034,"3,000 x A5 Chorley Flower Show Booklet 2019 Estimate: 29470",17/04/2019,0137357,522.00,Revenue,N B Colour Print Ltd,17917,,
Chorley Borough Council,http://statistics.data.gov.uk/id/local-authority/30UE,Service Management & Support,1009,Business Development & Growth,Supplies-Grounds Maintenance,40025,"Equipment, Furniture & Materia",5023,3 Species In The Green Bulb Collection. 4800nr for Coronation Rec,10/04/2019,0137071,800.00,Revenue,Naturescape,62058,,
Chorley Borough Council,http://statistics.data.gov.uk/id/local-authority/30UE,Service Management & Support,1009,Business Development & Growth,Supplies-Grounds Maintenance,40025,"Equipment, Furniture & Materia",5023,"Single Snowdrops in the green (Galanthus nivalis): 10,000nr.  Delivery to Astley Hall Walled Garden Potting Shed.",12/04/2019,0137089,945.00,Revenue,Naturescape,62058,,
Chorley Borough Council,http://statistics.data.gov.uk/id/local-authority/30UE,Capital,Capital,Customer & Digital,Other Capital Grants/Loans,03000,Capital Expenditure,Capital,GRANT,10/04/2019,0136940,"18,401.34",Capital,Next Big Thing Developments,77044,,
Chorley Borough Council,http://statistics.data.gov.uk/id/local-authority/30UE,Planning Policy,1092,Business Development & Growth,General Subscriptions,40146,Grants and Subscriptions,5031,Full membership to Northern Housing Consortium 01.04.19 - 31.03.2020,18/04/2019,0137368,910.00,Revenue,Northern Housing Consortium Ltd,17220,,
Chorley Borough Council,http://statistics.data.gov.uk/id/local-authority/30UE,Central Support Services,1009,Customer & Digital,Computer - Support Services,40111,Communication and Computing,5028,Northgate SAP/0001002477 91418525 9859.20 91418890 107.30,12/04/2019,0135944,"8,216.00",Revenue,Northgate Public Services (UK) Limited,18285,,
Chorley Borough Council,http://statistics.data.gov.uk/id/local-authority/30UE,Unapportionable Central OHeads,1009,Business Development & Growth,Electricity,20013,Energy Costs,5006,1/3/19 to 31/3/19,12/04/2019,0137155,"3,974.73",Revenue,Npower Commercial Gas,16814,,
Chorley Borough Council,http://statistics.data.gov.uk/id/local-authority/30UE,Unapportionable Central OHeads,1009,Business Development & Growth,Electricity,20013,Energy Costs,5006,1/3/19 to 31/3/19,24/04/2019,0137156,"1,050.89",Revenue,Npower Commercial Gas,16814,,
Chorley Borough Council,http://statistics.data.gov.uk/id/local-authority/30UE,Unapportionable Central OHeads,1009,Business Development & Growth,Electricity,20013,Energy Costs,5006,1/3/19 to 31/3/19,24/04/2019,0137157,"2,455.37",Revenue,Npower Commercial Gas,16814,,
Chorley Borough Council,http://statistics.data.gov.uk/id/local-authority/30UE,Central Support Services,1009,Business Development & Growth,Electricity,20013,Energy Costs,5006,1/3/19 to 31/3/19,24/04/2019,0137162,301.59,Revenue,Npower Commercial Gas,16814,,
Chorley Borough Council,http://statistics.data.gov.uk/id/local-authority/30UE,Parking Services,1066,Business Development & Growth,Electricity,20013,Energy Costs,5006,1/1/19 to 31/3/19,24/04/2019,0137303,"1,170.83",Revenue,Npower Commercial Gas,16814,,
Chorley Borough Council,http://statistics.data.gov.uk/id/local-authority/30UE,Business Support,1095,Business Development & Growth,Electricity,20013,Energy Costs,5006,1/1/19 to 31/3/19,24/04/2019,0137305,"4,069.12",Revenue,Npower Commercial Gas,16814,,
Chorley Borough Council,http://statistics.data.gov.uk/id/local-authority/30UE,Recreation & Sport,1037,Business Development & Growth,Electricity,20013,Energy Costs,5006,1/1/19 to 31/3/19,24/04/2019,0137306,287.73,Revenue,Npower Commercial Gas,16814,,
Chorley Borough Council,http://statistics.data.gov.uk/id/local-authority/30UE,Corporate Management,1008,Business Development & Growth,Electricity,20013,Energy Costs,5006,2/1/19 to 31/3/19,24/04/2019,0137310,415.54,Revenue,Npower Commercial Gas,16814,,
Chorley Borough Council,http://statistics.data.gov.uk/id/local-authority/30UE,Democratic Represent and  Mgnt,1007,Business Development & Growth,Electricity,20013,Energy Costs,5006,2/3/19 to 31/3/19,24/04/2019,0137311,335.65,Revenue,Npower Commercial Gas,16814,,
Chorley Borough Council,http://statistics.data.gov.uk/id/local-authority/30UE,Democratic Represent and  Mgnt,1007,Business Development & Growth,Electricity,20013,Energy Costs,5006,2/3/19 to 31/3/19,24/04/2019,0137314,901.26,Revenue,Npower Commercial Gas,16814,,
Chorley Borough Council,http://statistics.data.gov.uk/id/local-authority/30UE,Economic Development,1096,Business Development & Growth,Electricity,20013,Energy Costs,5006,1/4/18 to 31/3/19,24/04/2019,0137315,715.38,Revenue,Npower Commercial Gas,16814,,
Chorley Borough Council,http://statistics.data.gov.uk/id/local-authority/30UE,Democratic Represent and  Mgnt,1007,Business Development & Growth,Electricity,20013,Energy Costs,5006,eaves green cc,24/04/2019,0137320,485.88,Revenue,Npower Commercial Gas,16814,,
Chorley Borough Council,http://statistics.data.gov.uk/id/local-authority/30UE,Community Development,1097,Business Development & Growth,Electricity,20013,Energy Costs,5006,35-39 market street,24/04/2019,0137322,557.14,Revenue,Npower Commercial Gas,16814,,
Chorley Borough Council,http://statistics.data.gov.uk/id/local-authority/30UE,Community Development,1097,Business Development & Growth,Electricity,20013,Energy Costs,5006,35-39 market st,24/04/2019,0137324,281.72,Revenue,Npower Commercial Gas,16814,,
Chorley Borough Council,http://statistics.data.gov.uk/id/local-authority/30UE,Homelessness,1075,Business Development & Growth,Electricity,20013,Energy Costs,5006,02/1/19 to 31/3/19,24/04/2019,0137326,"1,552.89",Revenue,Npower Commercial Gas,16814,,
Chorley Borough Council,http://statistics.data.gov.uk/id/local-authority/30UE,Democratic Represent and  Mgnt,1007,Business Development & Growth,Electricity,20013,Energy Costs,5006,astley vill cc,24/04/2019,0137327,444.55,Revenue,Npower Commercial Gas,16814,,
Chorley Borough Council,http://statistics.data.gov.uk/id/local-authority/30UE,Democratic Represent and  Mgnt,1007,Business Development & Growth,Electricity,20013,Energy Costs,5006,king george v,24/04/2019,0137328,265.71,Revenue,Npower Commercial Gas,16814,,
Chorley Borough Council,http://statistics.data.gov.uk/id/local-authority/30UE,Unapportionable Central OHeads,1009,Business Development & Growth,Electricity,20013,Energy Costs,5006,Annual charges for the meter operator service,26/04/2019,0137399,350.00,Revenue,Npower Commercial Gas,16814,,
Chorley Borough Council,http://statistics.data.gov.uk/id/local-authority/30UE,Unapportionable Central OHeads,1009,Business Development & Growth,Electricity,20013,Energy Costs,5006,Annual charges for the meter operator service,26/04/2019,0137399,350.00,Revenue,Npower Commercial Gas,16814,,
Chorley Borough Council,http://statistics.data.gov.uk/id/local-authority/30UE,Unapportionable Central OHeads,1009,Business Development & Growth,Electricity,20013,Energy Costs,5006,Annual charges for the meter operator service,26/04/2019,0137399,350.00,Revenue,Npower Commercial Gas,16814,,
Chorley Borough Council,http://statistics.data.gov.uk/id/local-authority/30UE,Democratic Represent and  Mgnt,1007,Business Development & Growth,Electricity,20013,Energy Costs,5006,Annual charges for the meter operator service,26/04/2019,0137399,350.00,Revenue,Npower Commercial Gas,16814,,
Chorley Borough Council,http://statistics.data.gov.uk/id/local-authority/30UE,Parking Services,1066,Business Development & Growth,External Contractors,50008,Private Contractors,5042,"Off street car park enforcement, cash collection & counting facilities and third party bulk cash collections for 01.11.18 - 31.03.19",10/04/2019,0136903,"4,468.64",Revenue,NSL Limited,67253,,
Chorley Borough Council,http://statistics.data.gov.uk/id/local-authority/30UE,Central Support Services,1009,Business Development & Growth,Conferences - Staff,40120,Expenses,5030,PO RAISED ON WRONG AC23148,26/04/2019,0137388,556.00,Revenue,Ocean Media Group Ltd,16204,,
Chorley Borough Council,http://statistics.data.gov.uk/id/local-authority/30UE,Unapportionable Central OHeads,1009,Policy & Governance,Agency Staff,13000,Direct Employee Expenses,5001,Supply of Finance Manager on interim basis from 5th February 2019,10/04/2019,0136984,"7,250.00",Revenue,Penna Plc,77833,,
Chorley Borough Council,http://statistics.data.gov.uk/id/local-authority/30UE,Unapportionable Central OHeads,1009,Policy & Governance,Service Fees,40056,Services,5027,Occupational Health Charges for March 2019,10/04/2019,0137057,527.50,Revenue,People Asset Management Limited,76487,,
Chorley Borough Council,http://statistics.data.gov.uk/id/local-authority/30UE,Capital,Capital,Business Development & Growth,Consultants Fees,03025,Capital Expenditure,Capital,"To provide Project Management for Market Walk and associated schemes(previous order no: PRD052595)",26/04/2019,0136827,"11,172.78",Capital,Perfect Circle JV Ltd,76438,,
Chorley Borough Council,http://statistics.data.gov.uk/id/local-authority/30UE,Central Support Services,1009,Early Intervention,External Contractor,40198,Miscellaneous Expenses,5034,Pest Control services for 2018/19,17/04/2019,0136748,340.00,Revenue,Peter L Johnson,16727,,
Chorley Borough Council,http://statistics.data.gov.uk/id/local-authority/30UE,Central Support Services,1009,Early Intervention,External Contractor,40198,Miscellaneous Expenses,5034,Pest Control services for 2018/19,17/04/2019,0136868,340.00,Revenue,Peter L Johnson,16727,,
Chorley Borough Council,http://statistics.data.gov.uk/id/local-authority/30UE,Central Support Services,1009,Early Intervention,External Contractor,40198,Miscellaneous Expenses,5034,Pest Control services for 2018/19,17/04/2019,0137091,340.00,Revenue,Peter L Johnson,16727,,
Chorley Borough Council,http://statistics.data.gov.uk/id/local-authority/30UE,Central Support Services,1009,Early Intervention,External Contractor,40198,Miscellaneous Expenses,5034,Pest Control services for 2018/19,17/04/2019,0137239,340.00,Revenue,Peter L Johnson,16727,,
Chorley Borough Council,http://statistics.data.gov.uk/id/local-authority/30UE,Capital,Capital,Business Development & Growth,Other Capital Related Fees,03024,Capital Expenditure,Capital,"Alley Gates for Primrose Gardens Public Realm - Estimate 1012. Manufacture/installation of alley gates to area A, C and E ",03/04/2019,0136899,"4,670.60",Capital,PHG,21730,,
Chorley Borough Council,http://statistics.data.gov.uk/id/local-authority/30UE,Development Control,1091,Customer & Digital,Professional Fees,40063,Services,5027,Work in relation to Bank Hall Project,10/04/2019,0136082,"3,250.00",Revenue,Pick Everard,76515,,
Chorley Borough Council,http://statistics.data.gov.uk/id/local-authority/30UE,Service Management & Support,1009,Customer & Digital,Diesel/Derv,30007,Direct Transport Costs,5016,"Road Diesel (DERV)  1.02ppl  = 2040 Red Diesel  0.59ppl = 472.00",03/04/2019,0136904,472.00,Revenue,Pilkington Oils,18075,,
Chorley Borough Council,http://statistics.data.gov.uk/id/local-authority/30UE,Service Management & Support,1009,Customer & Digital,Diesel/Derv,30007,Direct Transport Costs,5016,"Road Diesel (DERV)  1.02ppl  = 2040 Red Diesel  0.59ppl = 472.00",03/04/2019,0136907,"2,040.00",Revenue,Pilkington Oils,18075,,
Chorley Borough Council,http://statistics.data.gov.uk/id/local-authority/30UE,Service Management & Support,1009,Customer & Digital,Diesel/Derv,30007,Direct Transport Costs,5016,"as per your quotation on the chest3000L DERV @1.049",17/04/2019,0137263,"3,129.17",Revenue,Pilkington Oils,18075,,
Chorley Borough Council,http://statistics.data.gov.uk/id/local-authority/30UE,Service Management & Support,1009,Customer & Digital,Diesel/Derv,30007,Direct Transport Costs,5016,800L Gas Oil @0.5789,17/04/2019,0137266,463.12,Revenue,Pilkington Oils,18075,,
Chorley Borough Council,http://statistics.data.gov.uk/id/local-authority/30UE,Central Support Services,1009,Early Intervention,Other Contributions,40145,Grants and Subscriptions,5031,2018 - 2019 funding for PCSO`s in Chorley area,10/04/2019,0137092,"27,500.00",Revenue,Police & Crime Commissioner,17548,,
Chorley Borough Council,http://statistics.data.gov.uk/id/local-authority/30UE,Central Support Services,1009,Customer & Digital,Safety Signs And Posters,40017,"Equipment, Furniture & Materia",5023,20 x PSPO signs as per quote REF11893,03/04/2019,0135876,579.65,Revenue,Poppy Signs Ltd,21898,,
Chorley Borough Council,http://statistics.data.gov.uk/id/local-authority/30UE,Capital,Capital,Business Development & Growth,Equipment,03014,Capital Expenditure,Capital,Quote REF12021/3 2 Height Restriction Signs - Portland St Double Sided  1800mm x 450mm aluminium Tek-Bolted to the barrier ,03/04/2019,0136536,260.82,Capital,Poppy Signs Ltd,21898,,
Chorley Borough Council,http://statistics.data.gov.uk/id/local-authority/30UE,Capital,Capital,Business Development & Growth,Equipment,03014,Capital Expenditure,Capital,Installation,03/04/2019,0136536,120.30,Capital,Poppy Signs Ltd,21898,,
Chorley Borough Council,http://statistics.data.gov.uk/id/local-authority/30UE,Capital,Capital,Business Development & Growth,Equipment,03014,Capital Expenditure,Capital,Survey/Design,03/04/2019,0136536,30.00,Capital,Poppy Signs Ltd,21898,,
Chorley Borough Council,http://statistics.data.gov.uk/id/local-authority/30UE,Capital,Capital,Business Development & Growth,Other Capital Related Fees,03024,Capital Expenditure,Capital,Quotation Ref 12011/1Post and Panel Sign - Peel Street Car Park & delivery   Contact NAME REDACTED - site foreman.,03/04/2019,0136767,298.10,Capital,Poppy Signs Ltd,21898,,
Chorley Borough Council,http://statistics.data.gov.uk/id/local-authority/30UE,Economic Development,1096,Business Development & Growth,Miscellaneous Expenses,40200,Miscellaneous Expenses,5034,As per quote: REF11920/1 Re: Steeley Lane Banner - upgraded fixings Bolt timber `rail` level with the base of the banner,17/04/2019,0136829,300.00,Revenue,Poppy Signs Ltd,21898,,
Chorley Borough Council,http://statistics.data.gov.uk/id/local-authority/30UE,Unapportionable Central OHeads,1009,Chief Executive,Photocopier Consumables,40049,"Printing, Stationery & General",5026,"Evolution Everyday A4 80gsm, Box 2500",12/04/2019,0137216,550.00,Revenue,Premier Paper Group,54451,,
Chorley Borough Council,http://statistics.data.gov.uk/id/local-authority/30UE,Planning Policy,1092,Business Development & Growth,Professional Fees,40063,Services,5027,Half Cost for Preston and Chorley Retail study undertaken by WYG,12/04/2019,0137189,"23,540.23",Revenue,Preston City Council,16657,,
Chorley Borough Council,http://statistics.data.gov.uk/id/local-authority/30UE,Elections,1012,Policy & Governance,Postages,40082,Communication and Computing,5028,postage for European poll cards,24/04/2019,0137415,"25,269.54",Revenue,Print Image Facilities LLP,57870,,
Chorley Borough Council,http://statistics.data.gov.uk/id/local-authority/30UE,Elections,1012,Policy & Governance,Printing,40043,"Printing, Stationery & General",5026,"Poll cards for Borough/Parish elections 2 May 2019 polling station poll cards, postal poll card and empty ;property poll cards",17/04/2019,0137333,"5,707.44",Revenue,Print Image Network,21171,,
Chorley Borough Council,http://statistics.data.gov.uk/id/local-authority/30UE,Elections,1012,Policy & Governance,Printing,40043,"Printing, Stationery & General",5026,"PI Refresh printing , 3 runs, January - March 2019",18/04/2019,0137354,"1,521.00",Revenue,Print Image Network,21171,,
Chorley Borough Council,http://statistics.data.gov.uk/id/local-authority/30UE,Business Support,1095,Business Development & Growth,Miscellaneous Expenses,40200,Miscellaneous Expenses,5034,Pest control provision at Market Walk site for October 18 to October 19 as discussed with NAME REDACTED on 20/8/2018,10/04/2019,0136866,359.97,Revenue,Rentokil,76639,,
Chorley Borough Council,http://statistics.data.gov.uk/id/local-authority/30UE,Unapportionable Central OHeads,1009,Policy & Governance,Disposal Of Records,40055,"Printing, Stationery & General",5026,3560 Addition Units Kilos of Confidential waste.,17/04/2019,0137344,"1,780.00",Revenue,Restore Datashred,16853,,
Chorley Borough Council,http://statistics.data.gov.uk/id/local-authority/30UE,Private Sector HSG Renewal,1073,Early Intervention,Miscellaneous Expenses,40200,Miscellaneous Expenses,5034,ADDRESS REDACTED,10/04/2019,0137116,895.00,Revenue,Rhea Projects Ltd,77753,,
Chorley Borough Council,http://statistics.data.gov.uk/id/local-authority/30UE,Private Sector HSG Renewal,1073,Early Intervention,Miscellaneous Expenses,40200,Miscellaneous Expenses,5034,ADDRESS REDACTED,10/04/2019,0137117,"1,421.00",Revenue,Rhea Projects Ltd,77753,,
Chorley Borough Council,http://statistics.data.gov.uk/id/local-authority/30UE,Corporate Management,1008,Customer & Digital,Contributions Parish Councils,40144,Grants and Subscriptions,5031,contributions parish,03/04/2019,0136935,169.00,Revenue,Rivington Parish Council,16209,,
Chorley Borough Council,http://statistics.data.gov.uk/id/local-authority/30UE,Payments of Precepts to Parish,1018,Customer & Digital,Parish Council Tax,04500,Revenue Account Transfers,Balance,precepts/parish council,03/04/2019,0136935,"2,331.00",Revenue,Rivington Parish Council,16209,,
Chorley Borough Council,http://statistics.data.gov.uk/id/local-authority/30UE,Corporate Management,1008,Customer & Digital,Home Loss Payment,40139,Grants and Subscriptions,5031,ADDRESS REDACTED,10/04/2019,0137118,500.00,Revenue,NAME REDACTED ,74839,,
Chorley Borough Council,http://statistics.data.gov.uk/id/local-authority/30UE,Service Management & Support,1009,Customer & Digital,Grounds Maintenance Contractor,20043,Grounds Maintenance Costs,5013,Works carried out in Chorley Cemetery & Bengal St depot,18/04/2019,0137285,260.00,Revenue,Scambler Plant Hire Ltd,16710,,
Chorley Borough Council,http://statistics.data.gov.uk/id/local-authority/30UE,Homelessness,1075,Early Intervention,External Contractor,40198,Miscellaneous Expenses,5034,Concierge services until 31/03/2019,24/04/2019,0136774,"5,756.60",Revenue,Sector Security Services,19269,,
Chorley Borough Council,http://statistics.data.gov.uk/id/local-authority/30UE,Homelessness,1075,Early Intervention,External Contractor,40198,Miscellaneous Expenses,5034,"Concierge Services for Cotswold Supported Housing  01/04/2019 - 31/03/2019 6819 hours @ 11.57 ph total cost = 78,895.83",24/04/2019,0137366,"5,681.70",Revenue,Sector Security Services,19269,,
Chorley Borough Council,http://statistics.data.gov.uk/id/local-authority/30UE,Parking Services,1066,Business Development & Growth,Miscellaneous Expenses,40200,Miscellaneous Expenses,5034,"Mobile patrols - October 18 til March 19 for visits between 7pm to 1am (Sun � Thurs)  7pm & 4am fri-sat 15 per visit ",26/04/2019,0137195,"1,035.00",Revenue,Securitas Security Services (UK) Ltd,70693,,
Chorley Borough Council,http://statistics.data.gov.uk/id/local-authority/30UE,Unapportionable Central OHeads,1009,Policy & Governance,Agency Staff,13000,Direct Employee Expenses,5001,Agency costs for temporary Locum Senior Paralegal from 8 April 2019,24/04/2019,0137273,"1,107.25",Revenue,Sellick Partnership Limited,76554,,
Chorley Borough Council,http://statistics.data.gov.uk/id/local-authority/30UE,Unapportionable Central OHeads,1009,Policy & Governance,Agency Staff,13000,Direct Employee Expenses,5001,Agency costs for temporary Locum Senior Paralegal from 8 April 2019,24/04/2019,0137417,"1,085.75",Revenue,Sellick Partnership Limited,76554,,
Chorley Borough Council,http://statistics.data.gov.uk/id/local-authority/30UE,Central Support Services,1009,Early Intervention,Miscellaneous Expenses,40200,Miscellaneous Expenses,5034,Fields in trust funded 20 wk project at Harpers Lane targeting teenage females. Delivered by SHAPE. Equal part payment 1 of 2,18/04/2019,0137272,500.00,Revenue,SHAPE Lancashire Community Interest Company,77935,,
Chorley Borough Council,http://statistics.data.gov.uk/id/local-authority/30UE,Elections,1012,Policy & Governance,Stationery,40050,"Printing, Stationery & General",5026,"150 , GUIDANCE FOR VOTERS - Local Government election  single vacancy - LE6",12/04/2019,0137218,122.63,Revenue,Shaw & Sons Ltd,18092,,
Chorley Borough Council,http://statistics.data.gov.uk/id/local-authority/30UE,Elections,1012,Policy & Governance,Stationery,40050,"Printing, Stationery & General",5026,"300, POLLING BOOTH NOTICE - Single Vacancy  for Local Elections LE7-1",12/04/2019,0137218,141.75,Revenue,Shaw & Sons Ltd,18092,,
Chorley Borough Council,http://statistics.data.gov.uk/id/local-authority/30UE,Development Control,1091,Customer & Digital,Consultants` Fees,40077,Services,5027,ICT Consultancy March,10/04/2019,0137094,"2,368.00",Revenue,Simon Daniel Booth,57624,,
Chorley Borough Council,http://statistics.data.gov.uk/id/local-authority/30UE,Service Management & Support,1009,Customer & Digital,Protective Clothing,40040,"Clothing, Uniforms and Laundry",5025,"High-Vis, Yellow, 100% waterproof, windproof, breathable outer trousers (HVTYST33) @ 12.15 ea smlx3, Medx3, Lrgx3, X Lrgx3",17/04/2019,0137331,145.80,Revenue,Smart Image Workwear,21064,,
Chorley Borough Council,http://statistics.data.gov.uk/id/local-authority/30UE,Service Management & Support,1009,Customer & Digital,Protective Clothing,40040,"Clothing, Uniforms and Laundry",5025,"High-Vis, Yellow, PU, waterproof un-lined, outer jacket (HVJYST33) @22.70 Medium x 2 Large x 2",17/04/2019,0137331,90.80,Revenue,Smart Image Workwear,21064,,
Chorley Borough Council,http://statistics.data.gov.uk/id/local-authority/30UE,Service Management & Support,1009,Customer & Digital,Protective Clothing,40040,"Clothing, Uniforms and Laundry",5025,100 x Warrior 0111WP PU gripper glove Grey seamless knitted nylon glove with PU coated palm size large  @ 0.36 each,17/04/2019,0137331,36.00,Revenue,Smart Image Workwear,21064,,
Chorley Borough Council,http://statistics.data.gov.uk/id/local-authority/30UE,Service Management & Support,1009,Customer & Digital,Protective Clothing,40040,"Clothing, Uniforms and Laundry",5025,4 x ORN 2900-15 Vulture Ballistic Trouser W38`` @ 19.95,17/04/2019,0137331,79.80,Revenue,Smart Image Workwear,21064,,
Chorley Borough Council,http://statistics.data.gov.uk/id/local-authority/30UE,Corporate Management,1008,Customer & Digital,Printing,40043,"Printing, Stationery & General",5026,"Bank Holiday Working stickers x50,000 as per estimate 238604",03/04/2019,0136902,"1,505.00",Revenue,Smart Print & Labels ( Sales) Ltd,22340,,
Chorley Borough Council,http://statistics.data.gov.uk/id/local-authority/30UE,Corporate Management,1008,Customer & Digital,Printing,40043,"Printing, Stationery & General",5026,"10,000 150MM CIRCLE PRINTED 3 COLOURS, GLOSS WHITE PERM ADHESIVE UV VARNISH OUTSIDE  500 PER ROLL",26/04/2019,0137427,448.00,Revenue,Smart Print & Labels ( Sales) Ltd,22340,,
Chorley Borough Council,http://statistics.data.gov.uk/id/local-authority/30UE,Central Support Services,1009,Customer & Digital,Computer Software-Purchase,40100,Communication and Computing,5028,60 x ``O365E1AddOn ShrdSvr All Language SubsVL MVL AddOn touserCoreCAL`` @ 4.64 = 278.40,05/04/2019,0136850,278.40,Revenue,Softcat Ltd,69996,,
Chorley Borough Council,http://statistics.data.gov.uk/id/local-authority/30UE,Unapportionable Central OHeads,1009,Policy & Governance,Service Fees to other Local Authorities,40076,Services,5027,Provision of Shared Assurance Services for 2018-19,03/04/2019,0136847,"120,000.00",Revenue,South Ribble Borough Council,17889,,
Chorley Borough Council,http://statistics.data.gov.uk/id/local-authority/30UE,Planning Policy,1092,Business Development & Growth,Survey Expenses,40069,Services,5027,Commission of Central Lancashire Playing Pitch and Open Space Strategy. Chorley Council share of 1/3 of the contract cost.,03/04/2019,0136848,"28,233.00",Revenue,South Ribble Borough Council,17889,,
Chorley Borough Council,http://statistics.data.gov.uk/id/local-authority/30UE,Service Management & Support,1009,Customer & Digital,Tools & Equipment - Purchase,40003,"Equipment, Furniture & Materia",5023,As per the ITQ for Ground Maintenance Equipment submitted via The Chest: 5 x Stihl HS82RC-E 24`` @ 339 ea,03/04/2019,0136857,"1,695.00",Revenue,Spalding (UK) Limited,20264,,
Chorley Borough Council,http://statistics.data.gov.uk/id/local-authority/30UE,Democratic Represent and  Mgnt,1007,Early Intervention,Consultants` Fees,40077,Services,5027,Waiver approved - Leisure Contract,17/04/2019,0136864,"4,191.50",Revenue,Sport Leisure and Culture Consultancy,77651,,
Chorley Borough Council,http://statistics.data.gov.uk/id/local-authority/30UE,Unapportionable Central OHeads,1009,Business Development & Growth,General Repairs - Reactive,20004,Repairs Maintenance & Alts,5005,Reactive repairs blanket order Feb 2019 onwards,10/04/2019,0136880,476.95,Revenue,Stringfellow Bldg Cntrctrs Ltd,17893,,
Chorley Borough Council,http://statistics.data.gov.uk/id/local-authority/30UE,Unapportionable Central OHeads,1009,Business Development & Growth,General Repairs - Reactive,20004,Repairs Maintenance & Alts,5005,Replace rotten / unsafe  walkboards on union st roof to allow access,12/04/2019,0136884,"6,500.00",Revenue,Stringfellow Bldg Cntrctrs Ltd,17893,,
Chorley Borough Council,http://statistics.data.gov.uk/id/local-authority/30UE,Unapportionable Central OHeads,1009,Business Development & Growth,General Repairs - Reactive,20004,Repairs Maintenance & Alts,5005,Reactive repairs blanket order Feb 2019 onwards,12/04/2019,0137039,280.40,Revenue,Stringfellow Bldg Cntrctrs Ltd,17893,,
Chorley Borough Council,http://statistics.data.gov.uk/id/local-authority/30UE,Unapportionable Central OHeads,1009,Business Development & Growth,General Repairs - Reactive,20004,Repairs Maintenance & Alts,5005,Reactive repairs blanket order Feb 2019 onwards,12/04/2019,0137040,508.92,Revenue,Stringfellow Bldg Cntrctrs Ltd,17893,,
Chorley Borough Council,http://statistics.data.gov.uk/id/local-authority/30UE,Unapportionable Central OHeads,1009,Business Development & Growth,General Repairs - Reactive,20004,Repairs Maintenance & Alts,5005,Reactive repairs blanket order Feb 2019 onwards,12/04/2019,0137041,"1,180.29",Revenue,Stringfellow Bldg Cntrctrs Ltd,17893,,
Chorley Borough Council,http://statistics.data.gov.uk/id/local-authority/30UE,Unapportionable Central OHeads,1009,Business Development & Growth,General Repairs - Reactive,20004,Repairs Maintenance & Alts,5005,Reactive repairs blanket order Feb 2019 onwards,12/04/2019,0137140,"3,750.00",Revenue,Stringfellow Bldg Cntrctrs Ltd,17893,,
Chorley Borough Council,http://statistics.data.gov.uk/id/local-authority/30UE,Capital,Capital,Early Intervention,Grants,03002,Capital Expenditure,Capital,ADDRESS REDACTED,18/04/2019,0137370,420.00,Capital,Stringfellow Bldg Cntrctrs Ltd,17893,,
Chorley Borough Council,http://statistics.data.gov.uk/id/local-authority/30UE,Capital,Capital,Early Intervention,Grants,03002,Capital Expenditure,Capital,ADDRESS REDACTED,18/04/2019,0137371,"2,997.00",Capital,Stringfellow Bldg Cntrctrs Ltd,17893,,
Chorley Borough Council,http://statistics.data.gov.uk/id/local-authority/30UE,Capital,Capital,Early Intervention,Grants,03002,Capital Expenditure,Capital,ADDRESS REDACTED,18/04/2019,0137389,"3,200.00",Capital,Stringfellow Bldg Cntrctrs Ltd,17893,,
Chorley Borough Council,http://statistics.data.gov.uk/id/local-authority/30UE,Capital,Capital,Early Intervention,Grants,03002,Capital Expenditure,Capital,ADDRESS REDACTED,18/04/2019,0137390,"9,790.00",Capital,Stringfellow Bldg Cntrctrs Ltd,17893,,
Chorley Borough Council,http://statistics.data.gov.uk/id/local-authority/30UE,Capital,Capital,Policy & Governance,Purchase Money,03027,Capital Expenditure,Capital,ADDRESS REDACTED,26/04/2019,0137460,"142,000.00",Capital,NAME REDACTED ,78004,,
Chorley Borough Council,http://statistics.data.gov.uk/id/local-authority/30UE,Business Support,1095,Business Development & Growth,Refuse Collection,20037,Cleaning and Domestic Supplies,5012,"Market Walk Yard 1 - General Waste, compacted - 35yd roll on/roll off skip from compactor @64.83 per exchange ",18/04/2019,0137062,129.66,Revenue,SUEZ R&R UK LTD,17615,,
Chorley Borough Council,http://statistics.data.gov.uk/id/local-authority/30UE,Business Support,1095,Business Development & Growth,Refuse Collection,20037,Cleaning and Domestic Supplies,5012,"Market Walk Yard 1 - General Waste, compacted - 35yd roll on/roll off skip from compactor  disposal costs   @108.75 per tonne",18/04/2019,0137062,"1,870.51",Revenue,SUEZ R&R UK LTD,17615,,
Chorley Borough Council,http://statistics.data.gov.uk/id/local-authority/30UE,Business Support,1095,Business Development & Growth,Refuse Collection,20037,Cleaning and Domestic Supplies,5012,Market Walk Yard 1 - 35yd roll on/roll off cardboard skip @25.00 rental per month. No haulage or disposal costs,18/04/2019,0137062,25.00,Revenue,SUEZ R&R UK LTD,17615,,
Chorley Borough Council,http://statistics.data.gov.uk/id/local-authority/30UE,Business Support,1095,Business Development & Growth,Refuse Collection,20037,Cleaning and Domestic Supplies,5012,Market Walk Yard 2 - 8 yd FEL for general waste @48.07 per lift estimated at 26 per year (less  amount paid on previous PO),18/04/2019,0137062,135.57,Revenue,SUEZ R&R UK LTD,17615,,
Chorley Borough Council,http://statistics.data.gov.uk/id/local-authority/30UE,Business Support,1095,Business Development & Growth,Refuse Collection,20037,Cleaning and Domestic Supplies,5012,Market Walk Yard 3 - 2 x 8yd FEL general waste @48.07 per lift (per FEL) - estimated at 26 lifts per FEL per year ,18/04/2019,0137062,505.90,Revenue,SUEZ R&R UK LTD,17615,,
Chorley Borough Council,http://statistics.data.gov.uk/id/local-authority/30UE,Democratic Represent and  Mgnt,1007,Customer & Digital,Refuse Collection,20037,Cleaning and Domestic Supplies,5012,Provision of Trade waste collection for ASTLEY VILLAGE CC (Aug 2018- March 2019) (1 x 360 litre bin per week),17/04/2019,0137064,725.57,Revenue,SUEZ R&R UK LTD,17615,,
Chorley Borough Council,http://statistics.data.gov.uk/id/local-authority/30UE,Service Management & Support,1009,Customer & Digital,Refuse Collection,20037,Cleaning and Domestic Supplies,5012,Exchange 20 yard street sweeping skip for transportation to Farington Waste Disposal site @64.83 per exchange,17/04/2019,0137095,"1,166.94",Revenue,SUEZ R&R UK LTD,17615,,
Chorley Borough Council,http://statistics.data.gov.uk/id/local-authority/30UE,Service Management & Support,1009,Customer & Digital,Refuse Collection,20037,Cleaning and Domestic Supplies,5012,Exchange 35 yard street cleaning & fly tipping skip for transportation to Whinny Hill Waste disposal site @97.25 per exchange,17/04/2019,0137095,"1,264.25",Revenue,SUEZ R&R UK LTD,17615,,
Chorley Borough Council,http://statistics.data.gov.uk/id/local-authority/30UE,Service Management & Support,1009,Customer & Digital,Refuse Collection,20037,Cleaning and Domestic Supplies,5012,Exchange 35 yard Green Waste skip for delivery to your depot for processing @ 70.00 per exchange,17/04/2019,0137095,210.00,Revenue,SUEZ R&R UK LTD,17615,,
Chorley Borough Council,http://statistics.data.gov.uk/id/local-authority/30UE,Service Management & Support,1009,Customer & Digital,Refuse Collection,20037,Cleaning and Domestic Supplies,5012,Disposal Charge Green Waste,17/04/2019,0137095,174.75,Revenue,SUEZ R&R UK LTD,17615,,
Chorley Borough Council,http://statistics.data.gov.uk/id/local-authority/30UE,Service Management & Support,1009,Business Development & Growth,External Contractor,40198,Miscellaneous Expenses,5034,"Meadow Cutting at Valley Bottoms, Yarrow Valley Country Park. Areas as indicated cut and bailed in August/September.",03/04/2019,0136765,"1,200.00",Revenue,T & L Kirkham,17058,,
Chorley Borough Council,http://statistics.data.gov.uk/id/local-authority/30UE,Service Management & Support,1009,Business Development & Growth,External Contractor,40198,Miscellaneous Expenses,5034,Meadow Cutting to take place at Lower Burgh Meadows. Bales are to be removed from site.  Blades to be set as high as possible,10/04/2019,0137012,950.00,Revenue,T & L Kirkham,17058,,
Chorley Borough Council,http://statistics.data.gov.uk/id/local-authority/30UE,Democratic Represent and  Mgnt,1007,Business Development & Growth,Grounds Maintenance Contractor,20043,Grounds Maintenance Costs,5013,Meadow Mowing and Bailing at Blainscough Wood Nature Reserve. Perimeter hedge to be cut.  Blades to be set to 100-120mm.,10/04/2019,0137013,850.00,Revenue,T & L Kirkham,17058,,
Chorley Borough Council,http://statistics.data.gov.uk/id/local-authority/30UE,Central Support Services,1009,Customer & Digital,Computer Equipment-Purchase,40098,Communication and Computing,5028,CCTV maintenance,12/04/2019,0137060,270.00,Revenue,Technology Solutions,72376,,
Chorley Borough Council,http://statistics.data.gov.uk/id/local-authority/30UE,Control Accounts,Control,Customer & Digital,Manual Control Account,00001,Balance Sheet,Balance,,12/04/2019,0137228,"14,236.80",Revenue,TFS Stores Limited,77969,,
Chorley Borough Council,http://statistics.data.gov.uk/id/local-authority/30UE,Democratic Represent and  Mgnt,1007,Policy & Governance,Data Protection Registration,40173,Miscellaneous Expenses,5034,data reg renewal for 10 councillors,17/04/2019,0137245,400.00,Revenue,The Information Commissioner,16278,,
Chorley Borough Council,http://statistics.data.gov.uk/id/local-authority/30UE,Business Support,1095,Business Development & Growth,Miscellaneous Expenses,40200,Miscellaneous Expenses,5034,"Marketing Material for Strawberry Fields Digital Hub 1,500xbusiness cards, 5000xA5 flyers, 200xA4 brochure, 1,500xA4 ds flyer",10/04/2019,0136846,"2,304.43",Revenue,The Print Quarter,17987,,
Chorley Borough Council,http://statistics.data.gov.uk/id/local-authority/30UE,Economic Development,1096,Business Development & Growth,Publicity - Advertising,40157,Miscellaneous Expenses,5034,"To erect and fit flags throughout Chapel Street, Chorley as discussed.",26/04/2019,0137454,289.00,Revenue,Town Centre Trees,57436,,
Chorley Borough Council,http://statistics.data.gov.uk/id/local-authority/30UE,Parking Services,1066,Chief Executive,Legal Fees,40171,Miscellaneous Expenses,5034,Carpark Lease,26/04/2019,0137351,"1,140.00",Revenue,Towns Needham Solicitors Limited,77307,,
Chorley Borough Council,http://statistics.data.gov.uk/id/local-authority/30UE,Service Management & Support,1009,Customer & Digital,Grounds Maintenance Contractor,20043,Grounds Maintenance Costs,5013,Fell large Oak in Ransnap woods next to St.Mary`s Primary Sch Euxton,03/04/2019,0136843,"2,560.00",Revenue,Treescape North West Ltd,17688,,
Chorley Borough Council,http://statistics.data.gov.uk/id/local-authority/30UE,Elections,1012,Policy & Governance,Tools & Equipment - Maintenance,40005,"Equipment, Furniture & Materia",5023,Annual maintenance contract Mailpost 125 single sided letter opener,24/04/2019,0137409,480.00,Revenue,Twofold Ltd,77795,,
Chorley Borough Council,http://statistics.data.gov.uk/id/local-authority/30UE,Unapportionable Central OHeads,1009,Customer & Digital,Service Fees,40056,Services,5027,daily hybridmail & annual billing,12/04/2019,0136844,"1,201.88",Revenue,UKMAIL Ltd (Mail),57758,,
Chorley Borough Council,http://statistics.data.gov.uk/id/local-authority/30UE,Unapportionable Central OHeads,1009,Customer & Digital,Service Fees,40056,Services,5027,daiy hybrid mail & annual billing,12/04/2019,0137049,"3,207.37",Revenue,UKMAIL Ltd (Mail),57758,,
Chorley Borough Council,http://statistics.data.gov.uk/id/local-authority/30UE,Unapportionable Central OHeads,1009,Customer & Digital,Service Fees,40056,Services,5027,bus mail,17/04/2019,0137287,"21,628.19",Revenue,UKMAIL Ltd (Mail),57758,,
Chorley Borough Council,http://statistics.data.gov.uk/id/local-authority/30UE,Unapportionable Central OHeads,1009,Customer & Digital,Service Fees,40056,Services,5027,development work,17/04/2019,0137288,280.00,Revenue,UKMAIL Ltd (Mail),57758,,
Chorley Borough Council,http://statistics.data.gov.uk/id/local-authority/30UE,Unapportionable Central OHeads,1009,Customer & Digital,Service Fees,40056,Services,5027,bus mail,17/04/2019,0137289,922.72,Revenue,UKMAIL Ltd (Mail),57758,,
Chorley Borough Council,http://statistics.data.gov.uk/id/local-authority/30UE,Unapportionable Central OHeads,1009,Customer & Digital,Service Fees,40056,Services,5027,Daily hybrid mail & annual billing,17/04/2019,0137290,"1,031.90",Revenue,UKMAIL Ltd (Mail),57758,,
Chorley Borough Council,http://statistics.data.gov.uk/id/local-authority/30UE,Unapportionable Central OHeads,1009,Customer & Digital,Service Fees,40056,Services,5027,Daily hybrid mail & annual billing,24/04/2019,0137383,"1,197.74",Revenue,UKMAIL Ltd (Mail),57758,,
Chorley Borough Council,http://statistics.data.gov.uk/id/local-authority/30UE,Corporate Management,1008,Customer & Digital,Contributions Parish Councils,40144,Grants and Subscriptions,5031,contributions /parish prec,03/04/2019,0136930,205.00,Revenue,Ulnes Walton Parish Council,16210,,
Chorley Borough Council,http://statistics.data.gov.uk/id/local-authority/30UE,Payments of Precepts to Parish,1018,Customer & Digital,Parish Council Tax,04500,Revenue Account Transfers,Balance,precepts/parish council,03/04/2019,0136930,"5,890.00",Revenue,Ulnes Walton Parish Council,16210,,
Chorley Borough Council,http://statistics.data.gov.uk/id/local-authority/30UE,Business Support,1095,Business Development & Growth,Miscellaneous Expenses,40200,Miscellaneous Expenses,5034,For business loan facilitation 2017/2018 and underwriting of delinquent loans.,10/04/2019,0137050,291.65,Revenue,Unify Credit Union Ltd,55509,,
Chorley Borough Council,http://statistics.data.gov.uk/id/local-authority/30UE,Control Accounts,Control,Policy & Governance,General Balances,00100,Balance Sheet,Balance,Monthly Deductions from Payroll,18/04/2019,0137395,"2,497.16",Revenue,Unify Credit Union Ltd,55509,,
Chorley Borough Council,http://statistics.data.gov.uk/id/local-authority/30UE,Capital,Capital,Early Intervention,Grants,03002,Capital Expenditure,Capital,ADDRESS REDACTED,18/04/2019,0137260,"5,465.70",Capital,UPS Building and Maintenance Ltd,76235,,
Chorley Borough Council,http://statistics.data.gov.uk/id/local-authority/30UE,Capital,Capital,Early Intervention,Grants,03002,Capital Expenditure,Capital,,18/04/2019,0137277,"4,746.25",Capital,UPS Building and Maintenance Ltd,76235,,
Chorley Borough Council,http://statistics.data.gov.uk/id/local-authority/30UE,Capital,Capital,Early Intervention,Grants,03002,Capital Expenditure,Capital,ADDRESS REDACTED,18/04/2019,0137278,"4,330.15",Capital,UPS Building and Maintenance Ltd,76235,,
Chorley Borough Council,http://statistics.data.gov.uk/id/local-authority/30UE,Capital,Capital,Early Intervention,Grants,03002,Capital Expenditure,Capital,ADDRESS REDACTED,18/04/2019,0137359,"5,229.25",Capital,UPS Building and Maintenance Ltd,76235,,
Chorley Borough Council,http://statistics.data.gov.uk/id/local-authority/30UE,Capital,Capital,Early Intervention,Grants,03002,Capital Expenditure,Capital,ADDRESS REDACTED,18/04/2019,0137369,"4,636.40",Capital,UPS Building and Maintenance Ltd,76235,,
Chorley Borough Council,http://statistics.data.gov.uk/id/local-authority/30UE,Capital,Capital,Early Intervention,Grants,03002,Capital Expenditure,Capital,ADDRESS REDACTED,26/04/2019,0137463,"4,685.00",Capital,UPS Building and Maintenance Ltd,76235,,
Chorley Borough Council,http://statistics.data.gov.uk/id/local-authority/30UE,Central Support Services,1009,Business Development & Growth,Consultants` Fees,40077,Services,5027,Asset Valuations for Chorley Borough Council for 2018-19 accounts,10/04/2019,0136828,"4,500.00",Revenue,Valuation Office Agency,17561,,
Chorley Borough Council,http://statistics.data.gov.uk/id/local-authority/30UE,Central Support Services,1009,Business Development & Growth,Consultants` Fees,40077,Services,5027,Asset Valuations for Chorley Borough Council for 2018-19 accounts,10/04/2019,0136938,"3,000.00",Revenue,Valuation Office Agency,17561,,
Chorley Borough Council,http://statistics.data.gov.uk/id/local-authority/30UE,Development Control,1091,Customer & Digital,Professional Fees,40063,Services,5027,Independent valuation as per LGO instruction for ADDRESS REDACTED,10/04/2019,0137011,"2,500.00",Revenue,Valuation Office Agency,17561,,
Chorley Borough Council,http://statistics.data.gov.uk/id/local-authority/30UE,Central Support Services,1009,Customer & Digital,Internet Charges,40104,Communication and Computing,5028,Telephone charges,10/04/2019,0137129,"1,510.48",Revenue,Virgin Media Payments Ltd,17632,,
Chorley Borough Council,http://statistics.data.gov.uk/id/local-authority/30UE,Central Support Services,1009,Customer & Digital,Internet Charges,40104,Communication and Computing,5028,Telephone charges,10/04/2019,0137130,"1,463.34",Revenue,Virgin Media Payments Ltd,17632,,
Chorley Borough Council,http://statistics.data.gov.uk/id/local-authority/30UE,Central Support Services,1009,Customer & Digital,Internet Charges,40104,Communication and Computing,5028,Telephone charges,10/04/2019,0137131,"1,456.78",Revenue,Virgin Media Payments Ltd,17632,,
Chorley Borough Council,http://statistics.data.gov.uk/id/local-authority/30UE,Central Support Services,1009,Customer & Digital,Internet Charges,40104,Communication and Computing,5028,Late payment charges,10/04/2019,0137131,40.00,Revenue,Virgin Media Payments Ltd,17632,,
Chorley Borough Council,http://statistics.data.gov.uk/id/local-authority/30UE,Central Support Services,1009,Customer & Digital,Internet Charges,40104,Communication and Computing,5028,Telephone charges,10/04/2019,0137132,"1,484.30",Revenue,Virgin Media Payments Ltd,17632,,
Chorley Borough Council,http://statistics.data.gov.uk/id/local-authority/30UE,Central Support Services,1009,Customer & Digital,Internet Charges,40104,Communication and Computing,5028,Telephone charges,10/04/2019,0137133,"1,538.65",Revenue,Virgin Media Payments Ltd,17632,,
Chorley Borough Council,http://statistics.data.gov.uk/id/local-authority/30UE,Central Support Services,1009,Customer & Digital,Internet Charges,40104,Communication and Computing,5028,Late payment and interest charges,10/04/2019,0137133,83.11,Revenue,Virgin Media Payments Ltd,17632,,
Chorley Borough Council,http://statistics.data.gov.uk/id/local-authority/30UE,Central Support Services,1009,Customer & Digital,Internet Charges,40104,Communication and Computing,5028,Telephone charges,10/04/2019,0137134,"1,408.14",Revenue,Virgin Media Payments Ltd,17632,,
Chorley Borough Council,http://statistics.data.gov.uk/id/local-authority/30UE,Central Support Services,1009,Customer & Digital,Internet Charges,40104,Communication and Computing,5028,Late payment and interest charges,10/04/2019,0137134,89.81,Revenue,Virgin Media Payments Ltd,17632,,
Chorley Borough Council,http://statistics.data.gov.uk/id/local-authority/30UE,Central Support Services,1009,Customer & Digital,Internet Charges,40104,Communication and Computing,5028,Telephone charges,10/04/2019,0137135,"1,305.65",Revenue,Virgin Media Payments Ltd,17632,,
Chorley Borough Council,http://statistics.data.gov.uk/id/local-authority/30UE,Central Support Services,1009,Customer & Digital,Internet Charges,40104,Communication and Computing,5028,Late payment and interest charges,10/04/2019,0137135,96.40,Revenue,Virgin Media Payments Ltd,17632,,
Chorley Borough Council,http://statistics.data.gov.uk/id/local-authority/30UE,Central Support Services,1009,Customer & Digital,Internet Charges,40104,Communication and Computing,5028,Telephone charges,10/04/2019,0137136,"1,428.85",Revenue,Virgin Media Payments Ltd,17632,,
Chorley Borough Council,http://statistics.data.gov.uk/id/local-authority/30UE,Central Support Services,1009,Customer & Digital,Internet Charges,40104,Communication and Computing,5028,Late payment and interest charges,10/04/2019,0137136,133.54,Revenue,Virgin Media Payments Ltd,17632,,
Chorley Borough Council,http://statistics.data.gov.uk/id/local-authority/30UE,Central Support Services,1009,Customer & Digital,Internet Charges,40104,Communication and Computing,5028,Telephone charges,12/04/2019,0137139,"1,363.29",Revenue,Virgin Media Payments Ltd,17632,,
Chorley Borough Council,http://statistics.data.gov.uk/id/local-authority/30UE,Central Support Services,1009,Customer & Digital,Internet Charges,40104,Communication and Computing,5028,Late payment and interest charges,12/04/2019,0137139,140.12,Revenue,Virgin Media Payments Ltd,17632,,
Chorley Borough Council,http://statistics.data.gov.uk/id/local-authority/30UE,Service Management & Support,1009,Business Development & Growth,External Contractor,40198,Miscellaneous Expenses,5034,A Geotechnical inspection and report for ADDRESS REDACTED,12/04/2019,0136659,750.00,Revenue,Wardell Armstrong LLP,77818,,
Chorley Borough Council,http://statistics.data.gov.uk/id/local-authority/30UE,Corporate Management,1008,Customer & Digital,Contributions Parish Councils,40144,Grants and Subscriptions,5031,cont /parish,03/04/2019,0136927,432.00,Revenue,Wheelton Parish Council,16189,,
Chorley Borough Council,http://statistics.data.gov.uk/id/local-authority/30UE,Payments of Precepts to Parish,1018,Customer & Digital,Parish Council Tax,04500,Revenue Account Transfers,Balance,precepts council,03/04/2019,0136927,"12,340.00",Revenue,Wheelton Parish Council,16189,,
Chorley Borough Council,http://statistics.data.gov.uk/id/local-authority/30UE,Unapportionable Central OHeads,1009,Chief Executive,Postages,40082,Communication and Computing,5028,Collection of mail from Town Hall and Union St to March 2019,12/04/2019,0136926,339.01,Revenue,Whistl North Limited,67256,,
Chorley Borough Council,http://statistics.data.gov.uk/id/local-authority/30UE,Unapportionable Central OHeads,1009,Chief Executive,Postages,40082,Communication and Computing,5028,"Mail collections for Union St and Town Hall, April `19 to March `20",17/04/2019,0137244,418.90,Revenue,Whistl North Limited,67256,,
Chorley Borough Council,http://statistics.data.gov.uk/id/local-authority/30UE,Unapportionable Central OHeads,1009,Chief Executive,Postages,40082,Communication and Computing,5028,"Mail collections for Union St and Town Hall, April `19 to March `20",24/04/2019,0137335,347.71,Revenue,Whistl North Limited,67256,,
Chorley Borough Council,http://statistics.data.gov.uk/id/local-authority/30UE,Payments of Precepts to Parish,1018,Customer & Digital,Parish Council Tax,04500,Revenue Account Transfers,Balance,parish precepts/parish council,03/04/2019,0136925,"52,300.00",Revenue,Whittle-le-Woods Parish Council,18602,,
Chorley Borough Council,http://statistics.data.gov.uk/id/local-authority/30UE,Recognised Cap Grants & Conts,,Business Development & Growth,Contributions Parish Councils,40144,Grants and Subscriptions,5031,cil receipt,12/04/2019,0137123,"39,015.73",Revenue,Whittle-le-Woods Parish Council,18602,,
Chorley Borough Council,http://statistics.data.gov.uk/id/local-authority/30UE,Capital,Capital,Policy & Governance,Purchase Money,03027,Capital Expenditure,Capital,Purchase Price,18/04/2019,0137350,"43,000.00",Capital,Wiggett Construction Ltd,77954,,
Chorley Borough Council,http://statistics.data.gov.uk/id/local-authority/30UE,Capital,Capital,Policy & Governance,Other Capital Related Fees,03024,Capital Expenditure,Capital,Fees and searches,18/04/2019,0137350,996.00,Capital,Wiggett Construction Ltd,77954,,
Chorley Borough Council,http://statistics.data.gov.uk/id/local-authority/30UE,Capital,Capital,Business Development & Growth,Surveyors Fees,03021,Capital Expenditure,Capital,NAME REDACTED - Report on baseline botanical survey of Yarrow Meadows areas. Set up fixed point photography points.,12/04/2019,0137188,890.00,Capital,Wildlife Trust for Lancs Manchester & N Merseyside,20377,,
Chorley Borough Council,http://statistics.data.gov.uk/id/local-authority/30UE,Capital,Capital,Business Development & Growth,Main Contractor,03007,Capital Expenditure,Capital,Design and Build Strawberry Fields Digital Hub - Chorley,12/04/2019,0137097,"60,474.73",Capital,Willmott Dixon Construction Ltd,77420,,
Chorley Borough Council,http://statistics.data.gov.uk/id/local-authority/30UE,Corporate Management,1008,Customer & Digital,Contributions Parish Councils,40144,Grants and Subscriptions,5031,contribs,10/04/2019,0137119,"1,483.00",Revenue,Withnell Parish Council,16211,,
Chorley Borough Council,http://statistics.data.gov.uk/id/local-authority/30UE,Payments of Precepts to Parish,1018,Customer & Digital,Parish Council Tax,04500,Revenue Account Transfers,Balance,parish council,10/04/2019,0137119,"27,787.00",Revenue,Withnell Parish Council,16211,,
Chorley Borough Council,http://statistics.data.gov.uk/id/local-authority/30UE,Recognised Cap Grants & Conts,,Business Development & Growth,Contributions Parish Councils,40144,Grants and Subscriptions,5031,cil receipt,12/04/2019,0137122,"6,797.25",Revenue,Withnell Parish Council,16211,,
Chorley Borough Council,http://statistics.data.gov.uk/id/local-authority/30UE,Central Support Services,1009,Business Development & Growth,Training Course Fees,17010,Indirect Employee Expenses,5002,Course fees for non-funded learners,03/04/2019,0136836,418.50,Revenue,Workers` Educational Association,76810,,
Chorley Borough Council,http://statistics.data.gov.uk/id/local-authority/30UE,Service Management & Support,1009,Customer & Digital,Vehicles and Plant Maintenance,30045,Direct Transport Costs,5016,Invoice number 11852 Remove DPF filter & send for cleaning. refit and reset DPF codes. Replace exhaust vaporiser and test.,17/04/2019,0137293,526.00,Revenue,Wrekamendid Services Ltd,21188,,
Chorley Borough Council,http://statistics.data.gov.uk/id/local-authority/30UE,Service Management & Support,1009,Customer & Digital,Vehicles and Plant Maintenance,30045,Direct Transport Costs,5016,Invoice number- 11826 To carry out full service and MOT. Replace brake pipes & bleed Replace brake pads /reset handbrake. ,17/04/2019,0137298,567.00,Revenue,Wrekamendid Services Ltd,21188,,
Chorley Borough Council,http://statistics.data.gov.uk/id/local-authority/30UE,Service Management & Support,1009,Customer & Digital,Vehicles and Plant Maintenance,30045,Direct Transport Costs,5016,mot,17/04/2019,0137298,45.00,Revenue,Wrekamendid Services Ltd,21188,,
Chorley Borough Council,http://statistics.data.gov.uk/id/local-authority/30UE,Service Management & Support,1009,Customer & Digital,Vehicles and Plant Maintenance,30045,Direct Transport Costs,5016,Invoice number-11821 MOT test. replace 3 tyres. Replace centre stop light bulb. Carry out tracking alignment Re MOT vehicle,17/04/2019,0137299,228.33,Revenue,Wrekamendid Services Ltd,21188,,
Chorley Borough Council,http://statistics.data.gov.uk/id/local-authority/30UE,Service Management & Support,1009,Customer & Digital,Vehicles and Plant Maintenance,30045,Direct Transport Costs,5016,mot,17/04/2019,0137299,30.00,Revenue,Wrekamendid Services Ltd,21188,,
Chorley Borough Council,http://statistics.data.gov.uk/id/local-authority/30UE,Central Support Services,1009,Customer & Digital,Consultants` Fees,40077,Services,5027,Xeretec Service Contract,05/04/2019,0136906,372.34,Revenue,Xeretec Document Solutions,20052,,
Chorley Borough Council,http://statistics.data.gov.uk/id/local-authority/30UE,Democratic Represent and  Mgnt,1007,Policy & Governance,Lifelong Learning Activities,40194,Miscellaneous Expenses,5034,"First Percussion Class Pack  795264 x 1 = 102.46 Hand-Held Foam Mirror 804185 x 10 = 149.50 Total (+VAT) = 302.35",12/04/2019,0137007,251.96,Revenue,Yorkshire Purchasing Org,18098,,
Chorley Borough Council,http://statistics.data.gov.uk/id/local-authority/30UE,Democratic Represent and  Mgnt,1007,Early Intervention,Fixtures & Fittings - Purchase,20027,Fixtures and Fittings,5010,"Twin Cavity Cooker, Ceramic Top, Code D64676 30 Litre Top Cavity, Grill 56 Litre Bottom Cavity, Main Oven 4 Hob Plates/Burners",26/04/2019,0137461,289.00,Revenue,Yorkshire Purchasing Org,18098,,
